Cogmind - Beta 10.1 @@@ ROGUE MODE // 2021.06.25 @ 01:42:44 // Winter2019/RPGLIKE Player: Farfid Result: Establishing 0b11! Performance ------------- Evolutions (9) 4500 Regions Visited (35) 7000 Robots Destroyed (1567) 7835 Value Destroyed (86528) 86528 Prototype IDs (115) 2300 Alien Tech Used (1) 200 Bonus (123971) 123971 TOTAL SCORE: 232334 Bonus ------- Triggered High Security 2000 High Alert Combat Kills 64111 Follower Combat Kills 2732 Met Data Miner 300 Met Imprinter 300 Met Zhirov 300 Met Warlord at Base 500 MAIN.C Attacked Warlord 500 Warlord Defense Kill 29156 Met Warlord at Research 2000 Invited to Help at Command 2000 Scanned by Researcher 500 Destroyed MAIN.C Guards 500 Met MAIN.C 5000 Destroyed MAIN.C Shell 5000 Destroyed MAIN.C 10000 Win 3000 Friendly Fire -3928 Cogmind --------- Core Integrity 1600/1600 Matter 400/400 Energy 1364/1380 System Corruption 0% Temperature Cool (8) Movement Hovering (33) Location 0b11 Command Parts ------- > --- POWER (2) -------- Zero-point Reactor Zero-point Reactor > --- PROPULSION (6) --- Cooled Antigrav System Cooled Antigrav System Cooled Antigrav System Cooled Antigrav System Combat Linear Gravjet Combat Linear Gravjet > --- UTILITY (13) ----- Experimental Power Amplifier Experimental Energy Well Advanced Salvage Targeting Computer Experimental Targeting Computer Experimental Target Analyzer Experimental Core Analyzer Recoil Nullifier Advanced Kinecellerator Experimental Weapon Cycler Heavy Regenerative Plating AEGIS Remote Shield Long-range Tractor Beam > --- WEAPON (5) ------- Helical Railgun Multirail Multirail Multirail Multirail > --- INVENTORY (5) ---- Protomatter-73 Protomatter-71 Protomatter-66 Improved System Restoration Module Peak State ------------ > --- POWER ------------ Zero-point Reactor Zero-point Reactor > --- PROPULSION ------- Cooled Antigrav System Cooled Antigrav System Cooled Antigrav System Cooled Antigrav System Combat Linear Gravjet Combat Linear Gravjet > --- UTILITY ---------- Experimental Power Amplifier Experimental Energy Well Experimental Matter Compressor Advanced Salvage Targeting Computer Experimental Targeting Computer Experimental Target Analyzer Experimental Core Analyzer Recoil Nullifier Advanced Kinecellerator Advanced Weapon Cycler Centrium Heavy Armor Plating AEGIS Remote Shield > --- WEAPON ----------- Helical Railgun Helical Railgun Multirail Multirail Multirail > --- INVENTORY -------- Protomatter Protomatter Protomatter Improved System Restoration Module [Rating: 241] Favorites ----------- Power Vortex Chain Reactor Engine Heavy Deuterium Engine Power Core Micro Fission Core Reactor Vortex Chain Reactor Propulsion Cooled Gravmag System Leg High-density Centrium Leg Wheel Armored Wheel Hover Unit Cooled Gravmag System Flight Unit Improved Flight Unit Utility Long-range Tractor Beam Device Long-range Tractor Beam Storage Experimental Energy Well Processor Makeshift Salvage Targeting Computer Hackware Advanced Hacking Suite Protection Improved Light Armor Plating Weapon Multirail Energy Gun Medium Laser Energy Cannon Beam Cannon Ballistic Gun Multirail Ballistic Cannon Enhanced Gauss Cannon Launcher Vortex Catalyst Activator Piercing Weapon Force Lance Special Melee Weapon Improved Datajack Build | -11 -10 -10 -9 -9 -9 -8 -8 -8 -7 -7 -7 -7 -6 -6 -6 -6 -6 -5 -5 -5 -5 -5 -5 -5 -4 -4 -4 -4 -4 -3 -3 -3 -2 -1 -1 ------- Run | Scr Mat Min Mat Min Exi Min Mat Sto Fac Low Low Dat Pro Fac Low Low Zio Pro Fac Was Fac Upp Upp Zhi Pro Fac Upp Upp War Pro Res Tes Res Acc Com Slots Evolved 22 | 3 . . 1 . . . 3 2 4 . . . . 3 . . . . 1 . . . . 1 . . 1 . 1 . . . 1 . 1 Power 1 | . . . . . . . . . 1 . . . . . . . . . . . . . . . . . . . . . . . . . . Propulsion 5 | 1 . . . . . . . 1 1 . . . . 1 . . . . . . . . . 1 . . . . . . . . . . . Utility 12 | 1 . . . . . . 2 1 1 . . . . 2 . . . . 1 . . . . . . . 1 . 1 . . . 1 . 1 Weapon 4 | 1 . . 1 . . . 1 . 1 . . . . . . . . . . . . . . . . . . . . . . . . . . Parts Attached 348 | 5 2 1 11 3 . . 3 10 29 1 6 . 4 23 1 3 4 2 11 4 9 . 2 7 2 17 1 . 12 4 9 19 20 1 122 Power 23 | 1 . 1 . . . . . 1 2 . 1 . 2 2 . . . . 2 1 . . . 1 . 1 . . 1 . . . . . 7 Engine 4 | 1 . . . . . . . 1 1 . 1 . . . . . . . . . . . . . . . . . . . . . . . . Core 5 | . . 1 . . . . . . 1 . . . 1 . . . . . 2 . . . . . . . . . . . . . . . . Reactor 14 | . . . . . . . . . . . . . 1 2 . . . . . 1 . . . 1 . 1 . . 1 . . . . . 7 Propulsion 42 | 2 . . 5 1 . . . 1 8 . . . . 3 . . . . 2 . 1 . . 3 . . . . 2 . . . 4 . 10 Treads . | . . . . . . . . . . . . . . . . . . . . . . . . . . . . . . . . . . . . Leg 2 | . . . . . . . . . . . . . . . . . . . . . . . . . . . . . . . . . . . 2 Wheel 6 | 2 . . 3 1 . . . . . . . . . . . . . . . . . . . . . . . . . . . . . . . Hover 32 | . . . . . . . . 1 8 . . . . 3 . . . . 2 . 1 . . 3 . . . . 2 . . . 4 . 8 Flight 2 | . . . 2 . . . . . . . . . . . . . . . . . . . . . . . . . . . . . . . . Utility 164 | . 1 . 2 1 . . 2 2 8 . 3 . . 7 1 . 4 . 1 3 5 . . 3 . 10 1 . 6 2 6 14 13 1 68 Device 115 | . 1 . . . . . . 1 5 . 2 . . 3 . . 3 . . 3 4 . . 3 . 8 1 . 6 2 6 13 10 1 43 Storage 9 | . . . . . . . 1 . . . . . . 1 . . . . . . . . . . . 1 . . . . . . . . 6 Processor 22 | . . . 1 . . . 1 1 . . . . . 1 1 . . . 1 . 1 . . . . 1 . . . . . 1 3 . 10 Hackware 2 | . . . . . . . . . . . . . . . . . . . . . . . . . . . . . . . . . . . 2 Protection 16 | . . . 1 1 . . . . 3 . 1 . . 2 . . 1 . . . . . . . . . . . . . . . . . 7 Artifact . | . . . . . . . . . . . . . . . . . . . . . . . . . . . . . . . . . . . . Weapon 119 | 2 1 . 4 1 . . 1 6 11 1 2 . 2 11 . 3 . 2 6 . 3 . 2 . 2 6 . . 3 2 3 5 3 . 37 Energy Gun 3 | 2 . . . . . . . . . . . . . . . . . . . . . . . . . . . . . . . . . . 1 Energy Cannon 3 | . 1 . . . . . . . . . . . . . . . . . . . . . . . . . . . . . . . . . 2 Ballistic Gun 81 | . . . 3 1 . . 1 5 10 1 . . 2 7 . 1 . . 6 . 2 . . . . 5 . . 1 1 3 3 3 . 26 Ballistic Cannon 20 | . . . . . . . . . 1 . 2 . . 3 . 1 . 2 . . 1 . 2 . 2 1 . . 1 1 . 1 . . 2 Launcher 8 | . . . 1 . . . . 1 . . . . . 1 . . . . . . . . . . . . . . 1 . . 1 . . 3 Special Weapon . | . . . . . . . . . . . . . . . . . . . . . . . . . . . . . . . . . . . . Impact Weapon . | . . . . . . . . . . . . . . . . . . . . . . . . . . . . . . . . . . . . Slashing Weapon . | . . . . . . . . . . . . . . . . . . . . . . . . . . . . . . . . . . . . Piercing Weapon 3 | . . . . . . . . . . . . . . . . . . . . . . . . . . . . . . . . . . . 3 Special Melee Weapon 1 | . . . . . . . . . . . . . . . . 1 . . . . . . . . . . . . . . . . . . . Unidentified Prototypes 77 | . . . 1 . . . . 1 2 . . . . 4 . . 2 . 1 1 2 . . 3 . 5 . . 7 . 3 9 6 . 30 Parts Lost 1 | . . . . . . . . . . . . . . . . . . . . . . . . . . . . . . . . . . . 1 Power . | . . . . . . . . . . . . . . . . . . . . . . . . . . . . . . . . . . . . Propulsion . | . . . . . . . . . . . . . . . . . . . . . . . . . . . . . . . . . . . . Utility 1 | . . . . . . . . . . . . . . . . . . . . . . . . . . . . . . . . . . . 1 Weapon . | . . . . . . . . . . . . . . . . . . . . . . . . . . . . . . . . . . . . Highest Loss Streak 1 | . . . . . . . . . . . . . . . . . . . . . . . . . . . . . . . . . . . 1 Average Slot Usage (%) 96 | . 79 85 92 99 100 100 100 99 98 100 98 100 99 94 95 95 95 95 96 98 97 100 100 100 99 99 99 100 92 95 95 94 95 96 96 Core 2 | . . 7 12 12 12 12 10 5 . 5 3 . 3 5 5 5 5 5 9 5 4 4 4 2 . . . . . . . . . . . Reactor 3 | . . . . . . . . . . . . . 1 4 5 5 5 5 . 3 4 4 4 6 9 9 8 8 4 4 4 4 4 4 5 Wheel 3 | . 28 28 23 24 25 25 21 16 3 . . . . . . . . . . . . . . . . . . . . . . . . . . Hover 20 | . . . . . . . . 1 19 23 23 23 23 21 20 20 20 20 20 23 23 23 23 25 27 27 26 26 25 25 25 25 24 24 23 Device 22 | . 8 14 8 . . . . 4 13 23 22 23 23 23 25 25 25 25 23 25 25 23 23 22 22 21 24 26 28 29 29 28 31 32 26 Processor 14 | . . . 5 12 12 12 11 16 12 5 5 5 5 6 10 10 10 10 12 14 14 19 19 18 18 18 17 17 16 16 16 16 16 16 17 Protection 2 | . . . 4 12 12 12 10 8 6 5 4 5 5 5 5 5 5 5 4 . . . . . . . . . . . . . . . . Ballistic Gun 20 | . . . 28 37 37 37 39 33 29 23 23 23 22 21 20 20 20 20 22 23 20 19 14 13 13 19 17 17 12 16 16 20 20 20 18 Ballistic Cannon 1 | . . . . . . . . . . 5 5 5 5 5 5 4 5 5 1 . 2 4 8 9 8 2 4 4 . 4 3 . . . . Naked Turns . | . . . . . . . . . . . . . . . . . . . . . . . . . . . . . . . . . . . . Heaviest Build 116 | 7 9 11 17 17 17 17 21 25 51 52 52 50 52 59 58 58 58 58 61 61 65 63 72 76 76 79 84 84 97 94 92 91 93 92 116 Greatest Support 184 | 31 31 31 31 29 29 29 29 29 54 54 54 54 54 71 71 71 71 71 93 93 99 99 99 128 128 160 128 128 170 134 134 134 184 184 184 Greatest Overweight (x) 1 | . . . 1 . . . . . . . . . . . . . . . . . . . . . . . . . . . . . . . . Average Overweight (x) . | . . . . . . . . . . . . . . . . . . . . . . . . . . . . . . . . . . . . Largest Inventory Capacity 5 | 1 1 1 2 2 2 2 2 3 4 4 4 4 4 4 4 4 4 4 4 5 5 5 5 5 5 5 5 5 5 5 5 5 5 5 5 Average Capacity 4 | 1 1 1 1 2 2 2 2 2 3 4 4 4 4 4 4 4 4 4 4 4 5 5 5 5 5 5 5 5 5 5 5 5 5 5 5 Most Carried 5 | . . 1 2 2 1 2 1 3 4 4 4 4 4 4 4 4 4 4 4 5 5 5 5 5 5 5 3 4 5 5 5 5 5 5 5 Average Carried 3 | . . . 1 1 1 1 . 1 3 4 4 4 3 3 4 3 3 3 3 4 4 4 5 5 4 4 2 3 4 4 4 4 4 4 4 Final Capacity 5 | 1 1 1 2 2 2 2 2 3 4 4 4 4 4 4 4 4 4 4 4 5 5 5 5 5 5 5 5 5 5 5 5 5 5 5 5 Final Carried 5 | . . 1 2 1 1 1 . 3 4 4 4 4 4 4 4 3 3 4 4 5 5 5 5 5 5 3 3 4 4 5 5 5 5 4 4 Class Distribution -------------------- 32% | Machinist-Gunner 18% | Scavenger-Sprinter 11% | Gunner 10% | Scavenger-Gunner 9% | Machinist-Mutant 5% | Scavenger-Tank 4% | Mutant 3% | Sprinter Dominant Class ---------------- Mutant | -10/Materials Mutant | -10/Mines Scavenger-Gunner | -9/Materials Scavenger-Tank | -9/Mines Scavenger-Tank | -9/Exiles Scavenger-Tank | -8/Mines Scavenger-Tank | -8/Materials Scavenger-Tank | -8/Storage Gunner | -7/Factory Gunner | -7/Lower Caves Gunner | -7/Lower Caves Gunner | -7/Data Miner Scavenger-Gunner | -6/Proximity Caves Machinist-Gunner | -6/Factory Machinist-Gunner | -6/Lower Caves Machinist-Gunner | -6/Lower Caves Machinist-Mutant | -6/Zion Machinist-Gunner | -5/Proximity Caves Machinist-Gunner | -5/Factory Machinist-Gunner | -5/Waste Machinist-Gunner | -5/Factory Machinist-Gunner | -5/Upper Caves Machinist-Gunner | -5/Upper Caves Machinist-Gunner | -5/Zhirov Machinist-Gunner | -4/Proximity Caves Machinist-Gunner | -4/Factory Machinist-Gunner | -4/Upper Caves Machinist-Gunner | -4/Upper Caves Machinist-Gunner | -4/Warlord Machinist-Gunner | -3/Proximity Caves Machinist-Mutant | -3/Research Machinist-Gunner | -3/Testing Gunner | -2/Research Sprinter | -1/Access Scavenger-Sprinter | -1/Command Resources | -11 -10 -10 -9 -9 -9 -8 -8 -8 -7 -7 -7 -7 -6 -6 -6 -6 -6 -5 -5 -5 -5 -5 -5 -5 -4 -4 -4 -4 -4 -3 -3 -3 -2 -1 -1 ----------- Run | Scr Mat Min Mat Min Exi Min Mat Sto Fac Low Low Dat Pro Fac Low Low Zio Pro Fac Was Fac Upp Upp Zhi Pro Fac Upp Upp War Pro Res Tes Res Acc Com Matter Collected 38244 | 250 20 10 353 407 . 110 376 1001 1923 446 490 . 720 2176 463 1060 20 659 1077 208 985 192 392 . 876 1871 296 115 820 910 56 1258 1946 877 15881 Remotely 32551 | . . . . . . . . 504 1923 446 490 . 720 2176 463 1060 10 659 1077 208 985 184 392 . 876 1216 296 115 820 910 56 1258 1946 877 12884 Salvage Created 83712 | . 226 422 379 277 . 181 376 1692 3617 780 951 . 1131 3232 585 1560 . 642 1844 54 2296 261 682 . 1257 3921 545 337 4971 1791 . 2534 3817 1331 42020 Parts 4043 | . 11 28 72 15 . 8 23 108 200 49 40 . 63 180 14 81 . 37 141 24 133 19 36 . 61 235 21 11 188 111 . 203 247 138 1546 Haulers Intercepted 42 | . . . 1 . . . . 6 5 . . . . 6 . . . . 3 . 6 . . . . 9 . . . . . 1 5 . . Recyclers Shooed 12 | . . . 4 . . . . 1 . . . . . 2 . . . . 2 . . . . . . 1 . . . . . . . 2 . Parts Field Recycled . | . . . . . . . . . . . . . . . . . . . . . . . . . . . . . . . . . . . . Retrieved Matter . | . . . . . . . . . . . . . . . . . . . . . . . . . . . . . . . . . . . . Parts Self-Destructed 708 | . . . . . . . . . . 49 22 . 74 . 14 81 . 51 . . . 19 52 . 61 . 21 11 140 113 . . . . . Prevented 15 | . . . . . . . . . . . . . 5 . . . . 3 . . . 1 3 . . . . . 3 . . . . . . Kills | -11 -10 -10 -9 -9 -9 -8 -8 -8 -7 -7 -7 -7 -6 -6 -6 -6 -6 -5 -5 -5 -5 -5 -5 -5 -4 -4 -4 -4 -4 -3 -3 -3 -2 -1 -1 ------- Run | Scr Mat Min Mat Min Exi Min Mat Sto Fac Low Low Dat Pro Fac Low Low Zio Pro Fac Was Fac Upp Upp Zhi Pro Fac Upp Upp War Pro Res Tes Res Acc Com Combat Hostiles Destroyed 1323 | . 4 8 20 6 . 2 7 23 45 17 17 . 22 44 10 32 . 19 29 3 28 5 16 . 19 44 24 5 217 27 . 33 43 23 531 Melee 2 | . . . . . . . . . . . . . . . . . . . . . . . . . . . . . . . . . . . 2 Guns 1082 | . 3 4 18 6 . 2 7 23 45 17 14 . 18 34 9 29 . 14 27 3 24 5 12 . 15 41 24 5 31 24 . 33 43 23 529 Cannons 47 | . 1 4 1 . . . . . . . 3 . 4 8 1 3 . 5 1 . 2 . 4 . 4 3 . . . 3 . . . . . AOE 191 | . . . . . . . . . . . . . . 2 . . . . 1 . 2 . . . . . . . 186 . . . . . . Classes Destroyed 29 | . 2 2 4 1 . . 1 2 3 . 1 . 1 1 . . . . . 1 1 . . . . . 1 . 4 1 . 1 . . 2 Worker 52 | . . . 1 . . 1 . 4 3 . . . . 5 . . . . 3 . 2 . . . . 5 . . . . . 3 6 4 15 Builder 35 | . 1 1 1 . . 1 . . 5 . . . . 11 . . . . 4 . . . . . . 3 . . . . . 3 5 . . Tunneler 8 | . . 2 1 1 . 2 . . . . . . . . . . . . . . 1 . . . . 1 . . . . . . . . . Hauler 42 | . . . 1 . . . . 6 5 . . . . 6 . . . . 3 . 6 . . . . 9 . . . . . 1 5 . . Recycler 20 | . . . 1 . . 1 1 . 5 . . . . 1 . . . . 1 . 2 . . . . 1 . . . . . 1 . 2 4 Carrier 5 | . . . . . . . . . . . . . . . . . . . . . . . . . . . . . . . . . . . 5 Minesweeper 1 | . . . . . . . . . . . . . . . . . . . . . . . . . . . . . . 1 . . . . . Mechanic 22 | . . . . . . . . . 3 . . . . . . . . . . . 1 . . . . . . . 1 . . . . . 17 Operator 10 | . . . . . . . . 1 1 . . . . 1 . . . . . . . . . . . . . . . . . 1 . 1 5 Watcher 28 | . . . . . . . . . 6 . . . . 5 . . . . 1 . 2 . . . . 1 . . . . . 1 2 . 10 Swarmer 230 | . . 4 11 3 . 2 . . 9 8 3 . 3 3 . 16 . 10 9 . 5 4 6 . 6 11 10 . 16 3 . 4 10 11 63 Saboteur 44 | . . . . . . . . . . . . . 1 . . . . . . . . . . . . . . . 16 . . . . . 27 Grunt 440 | . 4 4 4 2 . . 3 12 18 3 5 . 7 25 6 7 . 7 6 . 14 . 10 . 3 9 2 3 91 14 . 15 8 . 158 Brawler 69 | . . . . . . . . 1 6 . . . 1 1 2 3 . 1 . . 1 . . . . 1 . . 13 1 . 1 . . 37 Duelist 54 | . . . . 1 . . . . 1 . . . 3 1 . 2 . . . . 2 . . . 2 1 . 1 2 2 . . . . 36 Protector 27 | . . . . . . . . . . . . . . . . . . . . . 1 . . . . . . . 12 . . . . . 14 Researcher 3 | . . . . . . . . . . . . . . . . . . . . . . . . . . . . . . . . 3 . . . Sentry 80 | . . . 5 . . . 2 9 6 2 2 . 2 6 1 2 . 1 8 . 2 . . . 1 8 . 1 . 2 . 4 4 3 9 Demolisher 19 | . . . . . . . . . . . . . . . . . . . . . . . . . . . . . 6 . . . 1 . 12 Specialist 17 | . . . . . . . . . . . . . . . . . . . . . . . . . . . . . 5 . . . . . 12 Hunter 121 | . . . . . . . 2 2 2 1 . . 4 3 1 . . . 4 . 2 . . . 4 8 . . 10 4 . 4 10 2 58 Programmer 119 | . . . . . . . . . 3 3 . . 1 4 . 1 . . 2 . 1 . . . 2 5 . . 15 . . 5 3 7 67 Behemoth 18 | . . . . . . . . . . . . . . 1 . 1 . . . . . 1 . . 1 1 . . 8 1 . . . . 4 Compactor 3 | . . . . . . . . . . . . . . . . . . . . 3 . . . . . . . . . . . . . . . M Guard 2 | . . . . . . . . . . . . . . . . . . . . . . . . . . . . . . . . . . . 2 Combat Programmer 2 | . . . . . . . . . . . . . . . . . . . . . . . . . . . . . . . . . . . 2 Investigator 3 | . . . . . . . . . . . . . . . . . . . . . . . . . . . . . . . . . . . 3 Striker 26 | . . . . . . . . . . . . . . . . . . . . . . . . . . . . . 11 . . . 4 . 11 Executioner 30 | . . . . . . . . . . . . . . . . . . . . . . . . . . . . . 12 . . . 3 . 15 Alpha 7 2 | . . . . . . . . . . . . . . . . . . . . . . . . . . . . . . . . . . . 2 Packrat 2 | . . . . . . . . . . . . . . . . 2 . . . . . . . . . . . . . . . . . . . Assembled 12 | . . . . . . . . . . . . . . . . . . . . . . . . . . . 12 . . . . . . . . Surgeon 1 | . . . . . . . . . . . . . . . . . . . . . 1 . . . . . . . . . . . . . . Wasp 1 | . . . . . . . . . . . . . . . . . . . . 1 . . . . . . . . . . . . . . . Thug 10 | . . . . . . . . . . . 1 . . . . . . . . . 2 . . . . . . . 6 . . . 1 . . Savage 1 | . . . . . . . . . . . 1 . . . . . . . . . . . . . . . . . . . . . . . . Butcher 4 | . . . . . . . . . . . 4 . . . . . . . . . . . . . . . . . . . . . . . . Mutant 2 | . . . . . . . . . . . 1 . . . . . . . . . . . . . . . . . 1 . . . . . . Best Kill Streak 71 | . 3 7 5 3 . 3 3 8 11 5 7 . 5 9 5 11 . 8 10 1 15 4 5 . 5 15 12 5 20 8 . 18 14 26 71 Combat Bots Only 71 | . 2 3 5 3 . 2 3 6 7 5 7 . 5 6 5 11 . 8 6 1 12 4 5 . 5 9 12 5 20 8 . 12 13 12 71 Max Kills in Single Turn 12 | . 1 1 2 1 . 1 1 2 2 2 1 . 2 3 2 2 . 2 3 2 6 2 3 . 2 3 3 1 12 2 . 3 7 3 6 Gunslinging 3 | . . . 1 . . . . . 1 1 . . 1 . . 1 . 1 2 . 1 1 2 . 1 1 2 . 1 . . 2 2 2 3 Exploded 12 | . . . . . . . . . . . . . . 1 . . . . 1 . 2 . . . . . . . 12 . . . . . . Melee 1 | . . . . . . . . . . . . . . . . . . . . . . . . . . . . . . . . . . . 1 Uniques/NPCs Destroyed 2 | . . . . . . . . . . . . . . . . . . . . . . . . . . . . . . . . . . . 2 MAIN.C Shell (-1/Command) MAIN.C (-1/Command) Combat | -11 -10 -10 -9 -9 -9 -8 -8 -8 -7 -7 -7 -7 -6 -6 -6 -6 -6 -5 -5 -5 -5 -5 -5 -5 -4 -4 -4 -4 -4 -3 -3 -3 -2 -1 -1 -------- Run | Scr Mat Min Mat Min Exi Min Mat Sto Fac Low Low Dat Pro Fac Low Low Zio Pro Fac Was Fac Upp Upp Zhi Pro Fac Upp Upp War Pro Res Tes Res Acc Com Damage Taken 24957 | . 146 243 485 151 . 51 348 823 673 484 374 . 717 887 389 821 . 540 421 . 560 70 236 . 659 1602 208 47 2158 308 99 691 1063 481 9222 Core 19358 | . 119 195 371 121 . 28 222 630 481 366 289 . 518 684 303 593 . 422 330 . 450 54 187 . 534 1291 159 35 1719 238 75 533 843 368 7200 Absorbed by Shields 7021 | . . . . . . . . . . . . . . . . . . . . . . . . . . . 96 30 551 186 48 324 383 189 5214 Redirected to Core 16978 | . 92 156 253 67 . 28 180 492 428 308 234 . 478 593 250 540 . 362 274 . 385 54 157 . 447 1104 147 35 1565 224 75 496 740 355 6459 Core Remaining (%) 93 | 100 . 67 . . . 93 . 97 . . . . 97 . . . . 100 . . . . . . 100 . . . . 100 . 100 77 . 100 Volleys Fired 1714 | . 18 27 53 21 . 11 20 77 87 22 24 . 34 103 19 52 1 31 51 8 41 10 17 . 30 92 17 5 107 38 7 57 66 40 528 Largest 5 | . 2 2 3 3 . 3 4 4 5 5 5 . 5 5 5 5 1 5 5 5 5 5 5 . 5 5 5 5 3 5 1 5 5 5 5 Hottest 228 | . 110 110 83 69 . 69 92 94 160 160 162 . 162 175 147 150 33 150 189 167 190 190 228 . 228 190 196 196 100 196 35 186 196 196 218 Shots Fired 7073 | . 36 51 139 63 . 33 72 237 394 102 101 . 158 434 94 235 1 141 227 40 198 43 73 . 142 389 70 25 217 189 7 213 326 156 2467 Gun 6589 | . 25 24 124 63 . 33 72 237 392 88 88 . 134 356 75 205 1 124 216 40 175 38 53 . 90 354 68 20 175 151 7 213 326 156 2466 Cannon 441 | . 11 27 15 . . . . . 2 14 13 . 24 78 19 30 . 17 11 . 23 5 20 . 52 35 2 5 . 38 . . . . . Launcher 43 | . . . . . . . . . . . . . . . . . . . . . . . . . . . . . 42 . . . . . 1 Special . | . . . . . . . . . . . . . . . . . . . . . . . . . . . . . . . . . . . . Kinetic 6928 | . . . 124 63 . 33 72 237 394 102 101 . 158 434 94 235 1 141 227 40 198 43 73 . 142 389 70 25 175 189 7 213 326 156 2466 Thermal 95 | . 29 51 15 . . . . . . . . . . . . . . . . . . . . . . . . . . . . . . . . Explosive 1 | . . . . . . . . . . . . . . . . . . . . . . . . . . . . . . . . . . . 1 Electromagnetic 7 | . 7 . . . . . . . . . . . . . . . . . . . . . . . . . . . . . . . . . . Entropic 42 | . . . . . . . . . . . . . . . . . . . . . . . . . . . . . 42 . . . . . . Robot Hit Streak 103 | . 8 10 11 11 . 13 31 24 55 20 30 . 30 43 54 34 . 20 27 14 32 31 18 . 22 41 22 36 43 19 . 58 50 45 103 Robot Miss Streak 6 | . 2 5 4 2 . 1 3 3 2 1 1 . 2 2 2 2 . 1 3 1 2 1 2 . 2 2 1 . 2 1 . 1 2 1 6 Penetration Max 4 | . . . . . . . . . 1 . . . . 2 1 2 . 1 2 1 1 . 1 . 1 1 2 . 1 1 . 2 2 1 4 Secondary Targets 332 | . . . 1 . . . . 8 9 5 3 . 3 1 . 7 . 6 7 . 3 1 3 . 2 9 13 . 13 . . 13 17 10 198 Max Gunslinging Chain 3 | . . . 1 . . . . 1 1 2 1 . 1 1 . 2 . 1 2 . 1 1 2 . 1 2 3 . 2 . . 2 2 2 3 Shots Hit Robots 5142 | . 26 27 80 41 . 22 53 174 245 62 80 . 106 282 68 174 . 106 156 33 114 27 40 . 94 258 55 14 174 119 . 162 236 105 2009 Core Hits 3755 | . 11 15 32 11 . 7 17 66 114 24 30 . 45 127 23 50 . 34 76 9 75 8 23 . 41 129 33 11 367 59 . 100 134 53 2031 Critical Hits 1062 | . . . . 1 . . 1 2 8 2 2 . 3 13 6 7 . 4 23 7 25 5 13 . 20 27 10 2 30 21 . 43 66 42 679 Critical Kills 359 | . . . . 1 . . . 1 4 . 1 . 1 5 1 3 . . 13 2 8 . 6 . 4 11 4 1 7 6 . 14 24 20 222 Critical Parts Destroyed 531 | . . . . . . . 1 1 4 2 1 . 2 8 4 3 . 3 9 5 17 2 7 . 11 15 4 1 13 11 . 23 35 18 331 Melee Attacks 31 | . . . . . . . . . . . . . . . . . . . . . . . . . . . . . . . . . . . 31 Impact . | . . . . . . . . . . . . . . . . . . . . . . . . . . . . . . . . . . . . Slashing . | . . . . . . . . . . . . . . . . . . . . . . . . . . . . . . . . . . . . Piercing 31 | . . . . . . . . . . . . . . . . . . . . . . . . . . . . . . . . . . . 31 Sneak Attacks . | . . . . . . . . . . . . . . . . . . . . . . . . . . . . . . . . . . . . Combat Hostiles . | . . . . . . . . . . . . . . . . . . . . . . . . . . . . . . . . . . . . Follow-up Attacks . | . . . . . . . . . . . . . . . . . . . . . . . . . . . . . . . . . . . . Damage Inflicted 245761 | . 380 392 1305 488 . 343 665 2639 6285 1581 2008 . 2721 9449 2029 4912 . 3321 5136 915 4787 754 1264 . 2579 8227 1713 452 63643 4171 . 6195 7368 2446 97593 Guns 177246 | . 276 199 1166 488 . 343 665 2639 6251 1429 1796 . 2324 7023 1578 4072 . 2733 4587 915 4047 680 1042 . 2101 7495 1713 452 4906 3608 . 6195 6484 2446 97593 Cannons 6890 | . 104 193 139 . . . . . 34 152 212 . 397 1337 451 840 . 588 210 . 164 74 222 . 478 732 . . . 563 . . . . . Explosions 61625 | . . . . . . . . . . . . . . 1089 . . . . 339 . 576 . . . . . . . 58737 . . . 884 . . Melee . | . . . . . . . . . . . . . . . . . . . . . . . . . . . . . . . . . . . . Ramming . | . . . . . . . . . . . . . . . . . . . . . . . . . . . . . . . . . . . . Kinetic 183225 | . . . 1166 488 . 343 665 2639 6285 1581 2008 . 2721 8360 2029 4912 . 3321 4797 915 4211 754 1264 . 2579 8227 1713 452 4906 4171 . 6195 6484 2446 97593 Thermal 1158 | . 288 392 139 . . . . . . . . . . . . . . . 339 . . . . . . . . . . . . . . . . Explosive 2549 | . . . . . . . . . . . . . . 1089 . . . . . . 576 . . . . . . . . . . . 884 . . Electromagnetic 92 | . 92 . . . . . . . . . . . . . . . . . . . . . . . . . . . . . . . . . . Impact . | . . . . . . . . . . . . . . . . . . . . . . . . . . . . . . . . . . . . Slashing . | . . . . . . . . . . . . . . . . . . . . . . . . . . . . . . . . . . . . Piercing . | . . . . . . . . . . . . . . . . . . . . . . . . . . . . . . . . . . . . Entropic 58737 | . . . . . . . . . . . . . . . . . . . . . . . . . . . . . 58737 . . . . . . Highest Corruption 9 | . . . . . . . . 2 1 1 1 1 1 2 2 2 2 . . . . . . . . 1 1 1 2 2 . 6 1 1 9 Average Corruption 2 | . . . . . . . . 2 1 1 1 1 1 2 2 2 2 . . . . . . . . 1 1 1 1 2 . 2 1 1 3 Corruption Purged 24 | . . . . . . . . . . . . . . . . . . . . . . . . . . . . . . . . 4 . . 20 Effects 245 | . . . . . . . . . 6 6 2 . 1 4 4 12 . . . . . . . . . 1 2 . 11 14 . 17 4 1 160 Message Errors 48 | . . . . . . . . . . 3 . . . 2 1 3 . . . . . . . . . . . . 1 4 . 4 1 1 28 Matter Fused 20 | . . . . . . . . . . . . . . . . . . . . . . . . . . . . . . . . 2 . . 18 Heat Flow Errors 20 | . . . . . . . . . . . . . . . . . . . . . . . . . . . . . 3 . . 2 . . 15 Energy Discharges 24 | . . . . . . . . . . . 1 . . . . 2 . . . . . . . . . 1 1 . 2 . . . . . 17 Parts Rejected 1 | . . . . . . . . . . . . . . . . . . . . . . . . . . . . . . . . . . . 1 Data Loss (minor) 25 | . . . . . . . . . 1 2 . . 1 2 . . . . . . . . . . . . . . 1 2 . . 2 . 14 Data Loss (major) 6 | . . . . . . . . . . . . . . . . . . . . . . . . . . . . . . . . . . . 6 Misfires 3 | . . . . . . . . . . . . . . . . . . . . . . . . . . . . . . . . . . . 3 Targeting Errors 86 | . . . . . . . . . 4 1 1 . . . 2 7 . . . . . . . . . . 1 . 4 7 . 9 1 . 49 Weapon Failures 12 | . . . . . . . . . 1 . . . . . 1 . . . . . . . . . . . . . . 1 . . . . 9 Overload Shots . | . . . . . . . . . . . . . . . . . . . . . . . . . . . . . . . . . . . . Overflow Damage 3836 | . 7 . . . . . . . . . 28 . . 208 . 51 . 32 17 . 60 . . . 3 18 . . 3253 80 . . 79 . . Projectiles 279 | . 7 . . . . . . . . . 28 . . 48 . 51 . 32 12 . . . . . 3 18 . . . 80 . . . . . Explosions 3557 | . . . . . . . . . . . . . . 160 . . . . 5 . 60 . . . . . . . 3253 . . . 79 . . Melee . | . . . . . . . . . . . . . . . . . . . . . . . . . . . . . . . . . . . . Knockbacks 39 | . . . . . . . . . . 1 3 . 4 2 4 2 . 1 . . 1 . 1 . 3 6 . . . 11 . . . . . Impact . | . . . . . . . . . . . . . . . . . . . . . . . . . . . . . . . . . . . . Kinetic 36 | . . . . . . . . . . 1 3 . 3 2 4 2 . 1 . . 1 . 1 . 3 6 . . . 9 . . . . . Secondary 3 | . . . . . . . . . . . . . 1 . . . . . . . . . . . . . . . . 2 . . . . . Self-Inflicted Damage . | . . . . . . . . . . . . . . . . . . . . . . . . . . . . . . . . . . . . Shots . | . . . . . . . . . . . . . . . . . . . . . . . . . . . . . . . . . . . . Rammed . | . . . . . . . . . . . . . . . . . . . . . . . . . . . . . . . . . . . . Targets Rammed . | . . . . . . . . . . . . . . . . . . . . . . . . . . . . . . . . . . . . Kicked . | . . . . . . . . . . . . . . . . . . . . . . . . . . . . . . . . . . . . Crushed . | . . . . . . . . . . . . . . . . . . . . . . . . . . . . . . . . . . . . Highest Temperature 316 | . 33 22 36 42 . 15 15 21 177 101 131 . 189 144 77 97 . 103 38 7 87 36 144 . 197 96 72 190 149 28 . 97 57 6 316 Average Temperature 39 | . 9 9 12 12 . 5 4 7 39 34 49 . 60 30 34 39 . 37 13 6 20 15 50 . 74 28 25 97 73 11 . 24 17 3 49 Received Heat Transfer 3608 | . 99 81 129 27 . . 99 342 264 39 81 . 90 333 138 198 . 123 54 . 144 . 90 . 57 129 30 15 315 79 20 140 18 12 462 Siege Activations . | . . . . . . . . . . . . . . . . . . . . . . . . . . . . . . . . . . . . Robots Corrupted . | . . . . . . . . . . . . . . . . . . . . . . . . . . . . . . . . . . . . Combat Hostiles . | . . . . . . . . . . . . . . . . . . . . . . . . . . . . . . . . . . . . Parts Fried 3 | . 2 . . . . . . . . . . . . . . . . . . . . . . . . . . . . . . . . . 1 Impact Corruptions . | . . . . . . . . . . . . . . . . . . . . . . . . . . . . . . . . . . . . Robots Melted 1 | . . . 1 . . . . . . . . . . . . . . . . . . . . . . . . . . . . . . . . Combat Hostiles 1 | . . . 1 . . . . . . . . . . . . . . . . . . . . . . . . . . . . . . . . Parts Melted 12 | . 1 2 . . . . . 1 . . . . . . . . . . . . 1 . . . . . . . . . . . . 5 2 Heat Transferred 2322 | . 777 999 296 . . . . . . . . . . . . . . . 250 . . . . . . . . . . . . . . . . Parts Sabotaged 18 | . . . . . . . . . . . . . . . . . . . . . . . . . . . . . . . . . . . 18 Parts Stolen . | . . . . . . . . . . . . . . . . . . . . . . . . . . . . . . . . . . . . Parts Stripped . | . . . . . . . . . . . . . . . . . . . . . . . . . . . . . . . . . . . . Power Chain Reactions . | . . . . . . . . . . . . . . . . . . . . . . . . . . . . . . . . . . . . Missiles Intercepted . | . . . . . . . . . . . . . . . . . . . . . . . . . . . . . . . . . . . . Alert | -11 -10 -10 -9 -9 -9 -8 -8 -8 -7 -7 -7 -7 -6 -6 -6 -6 -6 -5 -5 -5 -5 -5 -5 -5 -4 -4 -4 -4 -4 -3 -3 -3 -2 -1 -1 ------- Run | Scr Mat Min Mat Min Exi Min Mat Sto Fac Low Low Dat Pro Fac Low Low Zio Pro Fac Was Fac Upp Upp Zhi Pro Fac Upp Upp War Pro Res Tes Res Acc Com Peak Influence 13343 | . 178 279 595 321 . 85 256 884 1625 . . . . 2338 . . . . 1733 652 3033 . . . . 1935 . . . . 446 1194 1933 1781 13343 Initial 1159 | . . 69 44 231 . . 1 107 401 . . . . 333 . . . . 434 606 456 . . . . 144 . . . . 294 103 671 1159 854 Average 3317 | . 84 183 337 262 . 34 151 601 884 . . . . 1509 . . . . 1155 638 1826 . . . . 1061 . . . . 336 745 1370 1276 7408 Maximum Alert Level 5 | . . 1 2 1 . . 1 3 5 . . . . 5 . . . . 5 2 5 . . . . 5 . . . . 2 4 5 5 5 Low Security (%) 8 | 100 100 64 12 31 . 100 57 7 . . . . . . . . . . . . . . . . . 6 . . . . 12 11 . . . Level 1 8 | . . 35 64 68 . . 42 9 . . . . . 1 . . . . . . . . . . . 9 . . . . 76 6 . . . Level 2 10 | . . . 22 . . . . 41 42 . . . . 17 . . . . 16 100 5 . . . . 19 . . . . 10 8 1 . . Level 3 11 | . . . . . . . . 42 33 . . . . 2 . . . . 19 . 8 . . . . 13 . . . . . 63 22 46 1 Level 4 13 | . . . . . . . . . 20 . . . . 29 . . . . 55 . 19 . . . . 27 . . . . . 11 43 32 2 Level 5 17 | . . . . . . . . . 2 . . . . 47 . . . . 8 . 56 . . . . 22 . . . . . . 29 21 18 High Security 31 | . . . . . . . . . . . . . . 1 . . . . . . 10 . . . . . . . . . . . 2 . 77 Max Security . | . . . . . . . . . . . . . . . . . . . . . . . . . . . . . . . . . . . . Squads Dispatched 149 | . 1 . 4 . . . 2 10 12 . . . 1 19 . 1 . . 7 . 13 . 1 . . 12 . . . . 1 11 1 10 43 Investigation 32 | . . . 1 . . . 1 3 4 . . . . 8 . . . . 1 . 1 . 1 . . 3 . . . . 1 1 1 3 3 Extermination 11 | . . . . . . . . . 2 . . . . 2 . . . . 1 . . . . . . 2 . . . . . 1 . 1 2 Reinforcement 39 | . 1 . 3 . . . 1 4 3 . . . . 5 . . . . 3 . 7 . . . . 2 . . . . . 6 . 2 2 Assault 55 | . . . . . . . . . 3 . . . 1 4 . 1 . . 2 . 4 . . . . 2 . . . . . 1 . 1 36 Garrison 12 | . . . . . . . . 3 . . . . . . . . . . . . 1 . . . . 3 . . . . . 2 . 3 . Intercept . | . . . . . . . . . . . . . . . . . . . . . . . . . . . . . . . . . . . . Construction Impeded 4 | . . . . . . . . . 1 . . . . 1 . . . . . . . . . . . . . . . . . 1 . 1 . Haulers Reinforced 10 | . . . . . . . . . . . . . . 4 . . . . 2 . 4 . . . . . . . . . . . . . . Stealth | -11 -10 -10 -9 -9 -9 -8 -8 -8 -7 -7 -7 -7 -6 -6 -6 -6 -6 -5 -5 -5 -5 -5 -5 -5 -4 -4 -4 -4 -4 -3 -3 -3 -2 -1 -1 --------- Run | Scr Mat Min Mat Min Exi Min Mat Sto Fac Low Low Dat Pro Fac Low Low Zio Pro Fac Was Fac Upp Upp Zhi Pro Fac Upp Upp War Pro Res Tes Res Acc Com Distress Signals 43 | . . . 2 . . . 3 4 2 . . . . 1 . . . . 3 . 4 . . . . 3 . . . . 1 . 10 2 8 Communications Jammed . | . . . . . . . . . . . . . . . . . . . . . . . . . . . . . . . . . . . . Distress Signals . | . . . . . . . . . . . . . . . . . . . . . . . . . . . . . . . . . . . . Times Spotted 1754 | . 11 9 42 17 . 2 8 41 63 16 14 . 28 66 10 33 . 28 39 5 69 2 20 . 31 68 23 4 241 27 18 44 62 41 672 Peak Tracking Total 43 | . 4 3 6 5 . 3 3 5 8 5 7 . 7 9 5 7 . 6 5 2 15 1 7 . 8 9 12 4 20 7 5 10 5 8 43 Tactical Retreats 75 | . . 1 1 1 . 1 . . 1 . . . . 3 . . . 2 1 . 2 . . . 3 9 . . . 1 4 . 3 5 37 Traps | -11 -10 -10 -9 -9 -9 -8 -8 -8 -7 -7 -7 -7 -6 -6 -6 -6 -6 -5 -5 -5 -5 -5 -5 -5 -4 -4 -4 -4 -4 -3 -3 -3 -2 -1 -1 ------- Run | Scr Mat Min Mat Min Exi Min Mat Sto Fac Low Low Dat Pro Fac Low Low Zio Pro Fac Was Fac Upp Upp Zhi Pro Fac Upp Upp War Pro Res Tes Res Acc Com Traps Triggered 17 | . . . . . . . . 2 4 . . . . . . . . . 2 . 1 . . . . 2 . . . . 3 . . . 3 Indirectly . | . . . . . . . . . . . . . . . . . . . . . . . . . . . . . . . . . . . . Trap Hack Attempts . | . . . . . . . . . . . . . . . . . . . . . . . . . . . . . . . . . . . . Triggered . | . . . . . . . . . . . . . . . . . . . . . . . . . . . . . . . . . . . . Disarmed . | . . . . . . . . . . . . . . . . . . . . . . . . . . . . . . . . . . . . Reprogrammed . | . . . . . . . . . . . . . . . . . . . . . . . . . . . . . . . . . . . . Reused 2 | . . 1 . . . . . . . . . . . . . . . . . . . . . . . 1 . . . . . . . . . Traps Extracted . | . . . . . . . . . . . . . . . . . . . . . . . . . . . . . . . . . . . . Installed 3 | . . 1 . . . . . . . . . . . . . . . . 1 . . . . . . 1 . . . . . . . . . Triggered 15 | . . 1 . . . . . . . . . . 1 . . . . . . . . 2 . . 3 1 . . 5 2 . . . . . Machines | -11 -10 -10 -9 -9 -9 -8 -8 -8 -7 -7 -7 -7 -6 -6 -6 -6 -6 -5 -5 -5 -5 -5 -5 -5 -4 -4 -4 -4 -4 -3 -3 -3 -2 -1 -1 ---------- Run | Scr Mat Min Mat Min Exi Min Mat Sto Fac Low Low Dat Pro Fac Low Low Zio Pro Fac Was Fac Upp Upp Zhi Pro Fac Upp Upp War Pro Res Tes Res Acc Com Machines Disabled 101 | . 1 1 . . . . . 2 6 . 1 . . 9 . 1 1 . 14 . 10 . 1 . . 18 . 1 2 2 . 14 3 3 11 Max in Single Turn 6 | . 1 1 . . . . . 1 2 . 1 . . 4 . 1 1 . 6 . 2 . 1 . . 2 . 1 2 1 . 2 1 1 2 Garrison Access 5 | . . . . . . . . . 1 . . . . . . . . . . . 2 . . . . . . . . . 1 . 1 . . Phase Generator 1 | . . . . . . . . . . . . . . . . . . . . . . . . . . . . . . . . . . . 1 Machines Sabotaged . | . . . . . . . . . . . . . . . . . . . . . . . . . . . . . . . . . . . . Garrisons Compromised . | . . . . . . . . . . . . . . . . . . . . . . . . . . . . . . . . . . . . Overloaded Fab Kills . | . . . . . . . . . . . . . . . . . . . . . . . . . . . . . . . . . . . . Fab Network Shutdowns 2 | . . . . . . . . . . . . . . 1 . . . . . . . . . . . 1 . . . . . . . . . Hacking | -11 -10 -10 -9 -9 -9 -8 -8 -8 -7 -7 -7 -7 -6 -6 -6 -6 -6 -5 -5 -5 -5 -5 -5 -5 -4 -4 -4 -4 -4 -3 -3 -3 -2 -1 -1 --------- Run | Scr Mat Min Mat Min Exi Min Mat Sto Fac Low Low Dat Pro Fac Low Low Zio Pro Fac Was Fac Upp Upp Zhi Pro Fac Upp Upp War Pro Res Tes Res Acc Com Machines Accessed 135 | . 2 . 6 . 1 . 1 9 11 3 3 4 . 16 1 . 1 . 7 . 9 . 2 4 . 14 2 . 2 . 7 8 1 12 9 Terminals 82 | . 2 . 6 . . . 1 7 5 . 1 . . 8 . . . . 5 . 5 . 1 . . 11 . . . . 5 6 . 10 9 Fabricators 17 | . . . . . . . . . 3 . . . . 6 . . . . 2 . 2 . . . . 3 . . . . . . . 1 . Repair Stations . | . . . . . . . . . . . . . . . . . . . . . . . . . . . . . . . . . . . . Recycling Units 4 | . . . . . . . . 1 1 . . . . 2 . . . . . . . . . . . . . . . . . . . . . Scanalyzers 2 | . . . . . . . . . 1 . . . . . . . . . . . . . . . . . . . . . . 1 . . . Garrison Access 9 | . . . . . . . . 1 1 . . . . . . . . . . . 2 . . . . . . . . . 2 1 1 1 . Total Hacks 381 | . 3 . 15 . 1 . 4 24 35 10 4 25 . 49 1 . 2 . 26 . 25 . 8 17 . 42 2 . 2 . 16 18 2 30 20 Successful 215 | . 2 . 8 . 1 . 2 9 15 10 4 25 . 29 1 . 2 . 13 . 12 . 6 17 . 20 2 . 2 . 7 8 . 10 10 Failed 165 | . 1 . 6 . . . 2 15 20 . . . . 20 . . . . 13 . 13 . 2 . . 22 . . . . 9 10 2 20 10 Catastrophic 42 | . 1 . 3 . . . 1 4 1 . . . . 3 . . . . 2 . 2 . 1 . . 6 . . . . 1 5 1 9 2 Database Lockouts 1 | . . . 1 . . . . . . . . . . . . . . . . . . . . . . . . . . . . . . . . Manual 118 | . 1 . 5 . . . 2 3 10 . . . . 18 . . . . 17 . 9 . 2 . . 15 . . 1 . 4 6 2 12 11 Terminals 241 | . 3 . 15 . . . 4 20 17 . 2 . . 26 . . . . 21 . 15 . 7 . . 38 . . . . 11 16 . 26 20 Fabricators 49 | . . . . . . . . . 13 . . . . 20 . . . . 5 . 5 . . . . 4 . . . . . . . 2 . Repair Stations . | . . . . . . . . . . . . . . . . . . . . . . . . . . . . . . . . . . . . Recycling Units 5 | . . . . . . . . 1 1 . . . . 3 . . . . . . . . . . . . . . . . . . . . . Scanalyzers 4 | . . . . . . . . . 3 . . . . . . . . . . . . . . . . . . . . . . 1 . . . Garrison Access 19 | . . . . . . . . 3 1 . . . . . . . . . . . 5 . . . . . . . . . 5 1 2 2 . Terminal Hacks 153 | . 2 . 8 . 1 . 2 7 5 10 4 25 . 13 1 . 2 . 4 . 5 . 6 17 . 14 2 . 2 . 6 6 . 6 5 Record 33 | . . . . . 1 . . . . 8 2 11 . . . . . . . . . . 5 5 . . 1 . . . . . . . . Part Schematic 16 | . . . . . . . . . . . . 5 . 2 . . 2 . 1 . 1 . . 4 . 1 . . . . . . . . . Robot Schematic 6 | . . . . . . . . . . . . 6 . . . . . . . . . . . . . . . . . . . . . . . Robot Analysis 5 | . . . . . . . . . . . . . . . . . . . . . . . . 4 . 1 . . . . . . . . . Prototype ID Bank 21 | . 1 . 2 . . . 1 3 2 . . 3 . 2 . . . . 1 . . . . 4 . . . . . . . 1 . . 1 Open Door 10 | . . . . . . . . 1 . 2 2 . . . 1 . . . . . . . 1 . . . 1 . 2 . . . . . . Level Access Points 1 | . . . . . . . . . . . . . . . . . . . . . . . . . . . . . . . 1 . . . . Branch Access Points 9 | . 1 . 1 . . . 1 . 1 . . . . 1 . . . . 1 . . . . . . 1 . . . . 1 . . 1 . Emergency Access Points 2 | . . . . . . . . . . . . . . 1 . . . . . . . . . . . 1 . . . . . . . . . Terminal Index 1 | . . . . . . . . . . . . . . . . . . . . . . . . . . . . . . . 1 . . . . Alert Level 6 | . . . . . . . . . . . . . . 2 . . . . . . . . . . . 2 . . . . . 1 . . 1 Unreport Threat 16 | . . . 1 . . . . 1 . . . . . 2 . . . . . . 1 . . . . 4 . . . . 2 . . 4 1 Locate Traps 10 | . . . . . . . . 1 . . . . . 1 . . . . 1 . 1 . . . . 1 . . . . 1 1 . 1 2 Surveillance Status 1 | . . . 1 . . . . . . . . . . . . . . . . . . . . . . . . . . . . . . . . Hauler Manifests 7 | . . . 1 . . . . 1 1 . . . . 1 . . . . . . 1 . . . . 2 . . . . . . . . . Registered Components 1 | . . . 1 . . . . . . . . . . . . . . . . . . . . . . . . . . . . . . . . Registered Prototypes 1 | . . . . . . . . . . . . . . . . . . . . . 1 . . . . . . . . . . . . . . Zone Layout 6 | . . . 1 . . . . . 1 . . . . 1 . . . . . . . . . . . 1 . . . . . 2 . . . Protovariant Controls 1 | . . . . . . . . . . . . . . . . . . . . . . . . . . . . . . . . 1 . . . Fabricator Hacks 21 | . . . . . . . . . 4 . . . . 10 . . . . 2 . 2 . . . . 2 . . . . . . . 1 . Load Schematic 9 | . . . . . . . . . 2 . . . . 4 . . . . 1 . 1 . . . . . . . . . . . . 1 . Build 12 | . . . . . . . . . 2 . . . . 6 . . . . 1 . 1 . . . . 2 . . . . . . . . . Repair Station Hacks . | . . . . . . . . . . . . . . . . . . . . . . . . . . . . . . . . . . . . Recycling Unit Hacks . | . . . . . . . . . . . . . . . . . . . . . . . . . . . . . . . . . . . . Scanalyzer 2 | . . . . . . . . . 2 . . . . . . . . . . . . . . . . . . . . . . . . . . Insert Component 1 | . . . . . . . . . 1 . . . . . . . . . . . . . . . . . . . . . . . . . . Analyze 1 | . . . . . . . . . 1 . . . . . . . . . . . . . . . . . . . . . . . . . . Garrison Access Hacks 3 | . . . . . . . . . 1 . . . . . . . . . . . 1 . . . . . . . . . 1 . . . . Seal Access 3 | . . . . . . . . . 1 . . . . . . . . . . . 1 . . . . . . . . . 1 . . . . Unauthorized Hacks 36 | . . . . . . . . 2 3 . . . . 6 . . . . 7 . 4 . . . . 4 . . . . . 2 . 3 5 Terminals 24 | . . . . . . . . 1 1 . . . . 2 . . . . 7 . 1 . . . . 3 . . . . . 1 . 3 5 Track 1 | . . . . . . . . . . . . . . . . . . . 1 . . . . . . . . . . . . . . . . Assimilate 4 | . . . . . . . . . . . . . . 1 . . . . 2 . . . . . . . . . . . . . . . 1 Botnet 18 | . . . . . . . . 1 1 . . . . 1 . . . . 3 . 1 . . . . 3 . . . . . 1 . 3 4 Operators 1 | . . . . . . . . . . . . . . . . . . . 1 . . . . . . . . . . . . . . . . Fabricators 6 | . . . . . . . . . 1 . . . . 2 . . . . . . 2 . . . . 1 . . . . . . . . . Prioritize 1 | . . . . . . . . . . . . . . . . . . . . . 1 . . . . . . . . . . . . . . Haulers 4 | . . . . . . . . . 1 . . . . 1 . . . . . . 1 . . . . 1 . . . . . . . . . Overload 1 | . . . . . . . . . . . . . . 1 . . . . . . . . . . . . . . . . . . . . . Repair Stations . | . . . . . . . . . . . . . . . . . . . . . . . . . . . . . . . . . . . . Recycling Units 4 | . . . . . . . . 1 1 . . . . 2 . . . . . . . . . . . . . . . . . . . . . Tunnel 4 | . . . . . . . . 1 1 . . . . 2 . . . . . . . . . . . . . . . . . . . . . Scanalyzers 1 | . . . . . . . . . . . . . . . . . . . . . . . . . . . . . . . . 1 . . . Researchers 1 | . . . . . . . . . . . . . . . . . . . . . . . . . . . . . . . . 1 . . . Garrison Access 1 | . . . . . . . . . . . . . . . . . . . . . 1 . . . . . . . . . . . . . . Jam 1 | . . . . . . . . . . . . . . . . . . . . . 1 . . . . . . . . . . . . . . Data Cores Recovered 4 | . . . . . . . . 1 1 . . . . . . . . . . . . . . . . . . . . . . . . 1 1 Used 2 | . . . . . . . . . 1 . . . . . . . . . . . . . . . . . . . . . . . . . 1 Hacking Detections 99 | . 2 . 5 . . . 1 7 8 . . . . 13 . . . . 7 . 7 . 1 . . 12 . . . . 7 7 1 12 9 Full Trace Events 24 | . . . 2 . . . 1 2 3 . . . . 5 . . . . 1 . . . 1 . . 3 . . . . . . 1 3 2 Feedback Events 2 | . . . . . . . . . 1 . . . . . . . . . . . . . . . . . . . . . . . . . 1 Corruption 2 | . . . . . . . . . 1 . . . . . . . . . . . . . . . . . . . . . . . . . 1 Feedback Blocked . | . . . . . . . . . . . . . . . . . . . . . . . . . . . . . . . . . . . . Robot Schematics Acquired 6 | . . . . . . . . . . . . 6 . . . . . . . . . . . . . . . . . . . . . . . Robots Built 4 | . . . . . . . . . . . . . . . . . . . . . . . . . . 4 . . . . . . . . . Matter 636 | . . . . . . . . . . . . . . . . . . . . . . . . . . 636 . . . . . . . . . Time 138 | . . . . . . . . . . . . . . . . . . . . . . . . . . 138 . . . . . . . . . Total Robot Build Rating 26 | . . . . . . . . . . . . . . . . . . . . . . . . . . 26 . . . . . . . . . Part Schematics Acquired 17 | . . . . . . . . . 1 . . 5 . 2 . . 2 . 1 . 1 . . 4 . 1 . . . . . . . . . Parts Built 9 | . . . . . . . . . 2 . . . . 4 . . . . 2 . 1 . . . . . . . . . . . . . . Matter 1615 | . . . . . . . . . 431 . . . . 716 . . . . 212 . 256 . . . . . . . . . . . . . . Time 590 | . . . . . . . . . 169 . . . . 187 . . . . 106 . 128 . . . . . . . . . . . . . . Total Part Build Rating 49 | . . . . . . . . . 9 . . . . 20 . . . . 12 . 8 . . . . . . . . . . . . . . Parts Repaired . | . . . . . . . . . . . . . . . . . . . . . . . . . . . . . . . . . . . . Time . | . . . . . . . . . . . . . . . . . . . . . . . . . . . . . . . . . . . . Parts Recycled . | . . . . . . . . . . . . . . . . . . . . . . . . . . . . . . . . . . . . Recycled Matter . | . . . . . . . . . . . . . . . . . . . . . . . . . . . . . . . . . . . . Retrieved Matter . | . . . . . . . . . . . . . . . . . . . . . . . . . . . . . . . . . . . . Retrieved Components . | . . . . . . . . . . . . . . . . . . . . . . . . . . . . . . . . . . . . Parts Scanalyzed 1 | . . . . . . . . . 1 . . . . . . . . . . . . . . . . . . . . . . . . . . Part Schematics Acquired 1 | . . . . . . . . . 1 . . . . . . . . . . . . . . . . . . . . . . . . . . Parts Damaged . | . . . . . . . . . . . . . . . . . . . . . . . . . . . . . . . . . . . . Bothacking | -11 -10 -10 -9 -9 -9 -8 -8 -8 -7 -7 -7 -7 -6 -6 -6 -6 -6 -5 -5 -5 -5 -5 -5 -5 -4 -4 -4 -4 -4 -3 -3 -3 -2 -1 -1 ------------ Run | Scr Mat Min Mat Min Exi Min Mat Sto Fac Low Low Dat Pro Fac Low Low Zio Pro Fac Was Fac Upp Upp Zhi Pro Fac Upp Upp War Pro Res Tes Res Acc Com Used RIF Installer . | . . . . . . . . . . . . . . . . . . . . . . . . . . . . . . . . . . . . Robots Hacked . | . . . . . . . . . . . . . . . . . . . . . . . . . . . . . . . . . . . . Non-combat . | . . . . . . . . . . . . . . . . . . . . . . . . . . . . . . . . . . . . Combat . | . . . . . . . . . . . . . . . . . . . . . . . . . . . . . . . . . . . . Robot Hacks Applied . | . . . . . . . . . . . . . . . . . . . . . . . . . . . . . . . . . . . . Relay Couplers Released 2 | . . . . . . . . . . . . . . . . . . . . . . . . . . . . . . . . . 2 . . Programmers 2 | . . . . . . . . . . . . . . . . . . . . . . . . . . . . . . . . . 2 . . Robots Rewired 8 | . . . . . . . . . . . . . 2 . 1 2 . . . . . . . . . . . 1 . 2 . . . . . Allies Hacked 1 | . . . . . . . . . . . . . . 1 . . . . . . . . . . . . . . . . . . . . . Hacks Repelled . | . . . . . . . . . . . . . . . . . . . . . . . . . . . . . . . . . . . . Allies | -11 -10 -10 -9 -9 -9 -8 -8 -8 -7 -7 -7 -7 -6 -6 -6 -6 -6 -5 -5 -5 -5 -5 -5 -5 -4 -4 -4 -4 -4 -3 -3 -3 -2 -1 -1 -------- Run | Scr Mat Min Mat Min Exi Min Mat Sto Fac Low Low Dat Pro Fac Low Low Zio Pro Fac Was Fac Upp Upp Zhi Pro Fac Upp Upp War Pro Res Tes Res Acc Com Total Allies 63 | . . 3 . 3 . . . 10 . . . . 3 1 1 2 9 . 2 19 3 . . . . 4 . 1 . 2 . . . . . Largest Group 19 | . . 3 3 3 1 . . 10 . . . . 3 2 1 2 9 9 6 19 15 3 3 1 1 3 . 1 1 2 1 . . . . Highest-Rated Group 696 | . . 40 40 70 26 . . 173 . . . . 152 123 20 50 264 264 169 696 591 93 93 31 31 141 . 49 49 95 48 . . . . Highest-Rated Ally 94 | . . 16 16 31 26 . . 29 . . . . 94 94 20 30 42 42 31 50 50 31 31 31 31 47 . 49 49 48 48 . . . . Total Orders 20 | . . . . . . . . . . . . . . . . . . . . . . . . . . 4 . . . . 3 7 . . 6 EXPLORE 16 | . . . . . . . . . . . . . . . . . . . . . . . . . . 4 . . . . 2 5 . . 5 RETURN 4 | . . . . . . . . . . . . . . . . . . . . . . . . . . . . . . . 1 2 . . 1 Ally Attacks 605 | . . . 43 31 . . . 60 . . . . 33 41 . 6 . 64 7 67 166 2 51 . 2 24 . . . 8 . . . . . Total Damage 15719 | . . . 440 361 . . . 831 . . . . 870 1125 . 97 . 1984 95 2854 5361 42 798 . 20 669 . . . 172 . . . . . Kills 113 | . . . 8 10 . . . 12 . . . . 6 11 . . . 8 2 5 37 1 5 . 1 6 . . . 1 . . . . . Allies Corrupted 2 | . . . . . . . . 1 . . . . . . . . . . . . . . . . . . . . 1 . . . . . . Allies Melted 1 | . . . . . . . . . . . . . . . . . . . . . 1 . . . . . . . . . . . . . . Intel | -11 -10 -10 -9 -9 -9 -8 -8 -8 -7 -7 -7 -7 -6 -6 -6 -6 -6 -5 -5 -5 -5 -5 -5 -5 -4 -4 -4 -4 -4 -3 -3 -3 -2 -1 -1 ------- Run | Scr Mat Min Mat Min Exi Min Mat Sto Fac Low Low Dat Pro Fac Low Low Zio Pro Fac Was Fac Upp Upp Zhi Pro Fac Upp Upp War Pro Res Tes Res Acc Com Robot Analysis Total 5 | . . . . . . . . . . . . . . . . . . . . . . . . 4 . 1 . . . . . . . . . Derelict Logs Recovered 21 | . . 2 . 1 . . . . . 2 2 . 2 . 2 2 1 2 . . . . 1 . 3 . . 1 . . . . . . . Drone Launches 17 | . . . . . . . . . . . . . . . . . . . . . . . . . . 4 . . . . 2 6 . . 5 Drone Recoveries 11 | . . . . . . . . . . . . . . . . . . . . . . . . . . 1 . . . . 2 4 . . 4 Exploration | -11 -10 -10 -9 -9 -9 -8 -8 -8 -7 -7 -7 -7 -6 -6 -6 -6 -6 -5 -5 -5 -5 -5 -5 -5 -4 -4 -4 -4 -4 -3 -3 -3 -2 -1 -1 ------------- Run | Scr Mat Min Mat Min Exi Min Mat Sto Fac Low Low Dat Pro Fac Low Low Zio Pro Fac Was Fac Upp Upp Zhi Pro Fac Upp Upp War Pro Res Tes Res Acc Com Turns Passed 28682 | 36 177 493 682 588 146 445 237 1024 1245 538 635 35 509 1454 416 536 658 516 755 193 699 286 574 101 473 1291 325 316 2109 619 356 627 1222 472 7894 Spaces Moved 33655 | 34 107 447 492 508 160 455 150 731 1532 1025 1119 80 689 1867 702 783 1089 808 1096 241 693 365 887 134 754 1826 634 591 1399 875 705 713 2120 802 7042 Core 4 | 4 . . . . . . . . . . . . . . . . . . . . . . . . . . . . . . . . . . . Treads . | . . . . . . . . . . . . . . . . . . . . . . . . . . . . . . . . . . . . Legs . | . . . . . . . . . . . . . . . . . . . . . . . . . . . . . . . . . . . . Wheels 3268 | 30 107 447 441 508 160 455 150 731 239 . . . . . . . . . . . . . . . . . . . . . . . . . . Hover 30332 | . . . . . . . . . 1293 1025 1119 80 689 1867 702 783 1089 808 1096 241 693 365 887 134 754 1826 634 591 1399 875 705 713 2120 802 7042 Flight 51 | . . . 51 . . . . . . . . . . . . . . . . . . . . . . . . . . . . . . . . Fastest Speed 16 | 50 90 90 32 85 90 90 90 90 43 43 43 43 43 40 40 40 40 40 40 46 46 46 46 40 40 16 40 40 16 40 40 40 16 16 16 Average Speed 43 | 85 90 90 79 89 90 90 90 90 51 43 43 43 43 40 40 40 40 40 41 46 46 46 46 43 40 39 40 40 39 40 40 40 34 32 33 Slowest Speed 110 | 90 90 90 110 90 90 90 90 90 90 43 43 43 43 43 40 40 40 40 46 46 46 46 46 46 40 40 40 40 40 40 40 40 40 33 46 Overloaded Moves 137 | . . . . . . . . . . . . . . . . . . . . . . . . . . 37 . . 20 . . . 9 27 44 Propulsion Burnouts . | . . . . . . . . . . . . . . . . . . . . . . . . . . . . . . . . . . . . Robots Hopped 1 | . . . 1 . . . . . . . . . . . . . . . . . . . . . . . . . . . . . . . . Cave-ins Triggered 3 | . . . . . . . . . . . . . . . . . . . . . . . . . . 1 . . 1 . . . . . 1 Exploration Rate (%) 68 | 3 32 97 65 93 51 92 11 91 44 98 92 71 91 43 83 88 85 93 33 86 28 52 93 60 93 61 89 75 95 89 24 94 51 33 94 Regions Visited 35 Branch Regions 23 Pre-discovered Areas 17 | . . 1 . . 1 . . 2 1 2 1 1 . 2 . . 1 . . . . . 2 3 . . . . . . . . . . . Known Exits Taken 15 | . 1 . 1 . . . 1 . 1 . . . . 1 1 . . 1 . . 1 . . . 1 1 1 . . 1 1 1 . 1 . Unknown Exits Taken 18 | 1 . 1 . 1 1 1 . 1 . 1 1 1 1 . . 1 1 . . . . 1 1 1 . . . 1 1 . . . 1 . . Scrap Searched 45 | . . 2 . 3 . 1 . . . 3 4 . 1 . 3 4 2 3 . . . 2 4 . 3 . 3 3 . 4 . . . . . Spaces Dug 189 | . . . . . . . . . . . . . . 14 . 2 . . 4 . . 4 9 . . 47 . . 4 . 11 21 . 12 61 Terrain Destroyed 2727 | . . 10 . . . . . . 6 7 10 . 11 145 11 32 . 34 144 3 137 24 59 . 61 340 61 22 322 172 11 80 127 83 815 Melee 8 | . . . . . . . . . . . . . . . . . . . . . . . . . . . . . . . . . . . 8 Projectile 2011 | . . . . . . . . . 6 7 10 . 11 58 11 32 . 34 111 3 107 24 59 . 61 213 61 22 27 172 11 80 119 60 712 AOE 708 | . . 10 . . . . . . . . . . . 87 . . . . 33 . 30 . . . . 127 . . 295 . . . 8 23 95 Terrain Rammed . | . . . . . . . . . . . . . . . . . . . . . . . . . . . . . . . . . . . . Walls Destroyed . | . . . . . . . . . . . . . . . . . . . . . . . . . . . . . . . . . . . . Machines Disabled . | . . . . . . . . . . . . . . . . . . . . . . . . . . . . . . . . . . . . Actions | -11 -10 -10 -9 -9 -9 -8 -8 -8 -7 -7 -7 -7 -6 -6 -6 -6 -6 -5 -5 -5 -5 -5 -5 -5 -4 -4 -4 -4 -4 -3 -3 -3 -2 -1 -1 --------- Run | Scr Mat Min Mat Min Exi Min Mat Sto Fac Low Low Dat Pro Fac Low Low Zio Pro Fac Was Fac Upp Upp Zhi Pro Fac Upp Upp War Pro Res Tes Res Acc Com Total 44541 | 38 151 487 670 598 161 468 206 967 1817 1076 1226 80 835 2380 802 919 1310 950 1299 311 987 463 1018 176 861 2234 673 659 2845 1069 773 970 2473 948 11641 Wait 6806 | . 19 8 49 50 2 1 10 95 94 6 47 1 44 309 56 20 211 72 94 42 198 75 99 29 37 205 7 44 1132 101 36 110 194 70 3239 Move 33612 | 33 106 446 489 507 159 454 149 730 1531 1024 1118 79 688 1866 701 782 1088 807 1095 240 692 364 886 133 753 1824 633 590 1397 874 704 711 2119 801 7039 Hop 1 | . . . 1 . . . . . . . . . . . . . . . . . . . . . . . . . . . . . . . . Pick Up 134 | . . 2 6 1 . 1 . 6 7 1 . . 3 3 . 1 1 4 4 5 3 2 . . 1 5 1 1 19 4 1 5 2 . 45 Fast Attach 293 | 5 2 1 9 2 . . 3 9 25 1 6 . 4 19 . 3 4 2 11 3 7 . 1 6 2 9 . . 7 2 9 18 16 . 107 Attach 19 | . . . 1 . . . . . 1 . . . . . . . . . . 1 2 . . . . 1 1 . 5 . . 1 1 . 5 Detach 6 | . . . . . . . . . 1 . . . . . . . . . . 2 2 . . . . . . . . . . . . . 1 Swap 37 | . . . 1 1 . . . 1 3 . . . . 4 1 . . . . . . . 1 2 . 7 . . . 2 . . 3 1 10 Drop 389 | . 1 2 13 5 . 1 1 10 25 2 6 . 6 24 . 5 5 5 11 8 9 2 2 6 3 19 . . 26 5 8 23 20 1 135 Fire 1714 | . 18 27 53 21 . 11 20 77 87 22 24 . 34 103 19 52 1 31 51 8 41 10 17 . 30 92 17 5 107 38 7 57 66 40 528 Melee 31 | . . . . . . . . . . . . . . . . . . . . . . . . . . . . . . . . . . . 31 Ram . | . . . . . . . . . . . . . . . . . . . . . . . . . . . . . . . . . . . . Kick . | . . . . . . . . . . . . . . . . . . . . . . . . . . . . . . . . . . . . Crush . | . . . . . . . . . . . . . . . . . . . . . . . . . . . . . . . . . . . . Escape Stasis 31 | . . . . . . . . . 13 . . . . . . . . . 1 . . . . . . 1 . . 1 . 2 5 . . 8 Rewire 50 | . . . . . . . . . . . . . 16 . 4 13 . . . . . . . . . . . 7 . 10 . . . . . Trap 3 | . . 1 . . . . . . . . . . . . . . . . 1 . . . . . . 1 . . . . . . . . . Miscellaneous 1415 | . 5 . 48 11 . . 23 39 30 20 25 . 40 52 21 43 . 29 31 2 33 10 12 . 35 70 14 12 151 33 6 40 52 35 493 Route ------- -11/Scrapyard -10/Materials -10/Mines (discovered 2 exits: *Mat x2) -9/Materials (discovered 4 exits: *Mat x2 / *Min x2) -9/Mines (discovered 3 exits: *Mat x2 / *Exi) -9/Exiles -8/Mines (discovered 2 exits: *Mat x2) -8/Materials -8/Storage -7/Factory (discovered 2 exits: *Low x2) -7/Lower Caves (discovered 2 exits: *Low / *Dat) -7/Lower Caves (discovered 2 exits: *Fac / *Dat) -7/Data Miner -6/Proximity Caves -6/Factory (discovered 3 exits: Fac / *Low x2) -6/Lower Caves -6/Lower Caves (discovered 2 exits: *Fac / *Zio) -6/Zion -5/Proximity Caves -5/Factory (discovered 4 exits: *Fac x2 / *Upp x2) -5/Waste -5/Factory (discovered 4 exits: *Fac x2 / *Upp x2) -5/Upper Caves -5/Upper Caves (discovered 2 exits: *Fac / *Zhi) -5/Zhirov -4/Proximity Caves -4/Factory (discovered 9 exits: *Res x4 / *Upp x2 / *Ext x2 / *Arm) -4/Upper Caves -4/Upper Caves (discovered 2 exits: *Res / *War) -4/Warlord -3/Proximity Caves -3/Research (discovered 5 exits: *Res x3 / *Tes x2) -3/Testing -2/Research (discovered 2 exits: *Acc / [*Qua]) -1/Access -1/Command 0b11 Command History --------- Turn | Location | Event 1 | -11/Scrapyard | Upgraded with Propulsion slot (x1) 1 | -11/Scrapyard | Upgraded with Utility slot (x1) 1 | -11/Scrapyard | Upgraded with Weapon slot (x1) 21 | -11/Scrapyard | Discovered new exit (range 15) 37 | -11/Scrapyard | Entered Materials 81 | -10/Materials | Identified exit to Mines 214 | -10/Materials | Entered Mines 254 | -10/Mines | Learned Materials emergency access door positions 302 | -10/Mines | Build established: Mutant 324 | -10/Mines | Found a hidden stash of uninstalled traps 417 | -10/Mines | Reached level 2 455 | -10/Mines | Learned location of Storage (-8) 475 | -10/Mines | Discovered new exit (range 10) 659 | -10/Mines | Discovered new exit (range 8) 671 | -10/Mines | Assisted by bots powering up and referring to "LRC-V3" 707 | -10/Mines | Entered Materials 707 | -9/Materials | Accompanied by 3 allies 709 | -9/Materials | Reached level 3 788 | -9/Materials | Reached level 4 813 | -9/Materials | Upgraded with Weapon slot (x1) 851 | -9/Materials | Identified exit to Mines 1048 | -9/Materials | Discovered new exit (range 4) 1053 | -9/Materials | Central database locked down 1076 | -9/Materials | Reached level 5 1210 | -9/Materials | Build established: Scavenger-Gunner 1241 | -9/Materials | Discovered new exit (range 11) 1352 | -9/Materials | Reached level 6 1389 | -9/Materials | Entered Mines 1450 | -9/Mines | Discovered new exit (range 9) 1502 | -9/Mines | Discovered new exit (range 6) 1578 | -9/Mines | Received a Mining Laser from a helpful Derelict 1599 | -9/Mines | Assembled infested the area 1652 | -9/Mines | Learned Materials trap positions 1917 | -9/Mines | Build established: Scavenger-Tank 1954 | -9/Mines | Deemed a non-threat by the Exiles lab entrance 1954 | -9/Mines | Discovered new exit (range 5) 1977 | -9/Mines | Entered Exiles 1977 | -9/Exiles | Accompanied by 1 ally 1979 | -9/Exiles | Reached level 7 1999 | -9/Exiles | Met 8R-AWN 2007 | -9/Exiles | Led the pair of lost Derelicts to a safe place 2014 | -9/Exiles | Met EX-HEX 2050 | -9/Exiles | Met EX-DEC 2056 | -9/Exiles | Learned location of Zion (-6) 2071 | -9/Exiles | Met EX-BIN 2115 | -9/Exiles | Discovered new exit (range 10) 2123 | -9/Exiles | Entered Mines 2200 | -8/Mines | Discovered new exit (range 10) 2361 | -8/Mines | Discovered new exit (range 11) 2568 | -8/Mines | Entered Materials 2569 | -8/Materials | Loaded intel: 10 trap records 2570 | -8/Materials | Reached level 8 2578 | -8/Materials | Discovered new exit (range 16) 2622 | -8/Materials | Upgraded with Weapon slot (x1) 2641 | -8/Materials | Identified exit to Storage 2665 | -8/Materials | Upgraded with Utility slot (x1) 2698 | -8/Materials | Reached level 9 2774 | -8/Materials | Upgraded with Utility slot (x1) 2805 | -8/Materials | Entered Storage 2880 | -8/Storage | Reached level 10 3067 | -8/Storage | Reached level 11 3148 | -8/Storage | Assisted by bots powering up and referring to "LRC-V3" 3201 | -8/Storage | Upgraded with Utility slot (x1) 3321 | -8/Storage | Reached level 12 3338 | -8/Storage | Learned location of Armory (-4) 3374 | -8/Storage | Discovered new exit (range 16) 3380 | -8/Storage | Found Prototype Launcher 3380 | -8/Storage | Identified Gui. Missile Launcher 3571 | -8/Storage | Upgraded with Propulsion slot (x1) 3829 | -8/Storage | Entered Factory 3831 | -7/Factory | Reached level 13 3999 | -7/Factory | Build established: Gunner 4008 | -7/Factory | Reached level 14 4088 | -7/Factory | Fabricated Aerolev Unit? 4165 | -7/Factory | Identified exit to Lower Caves 4229 | -7/Factory | First assault squad dispatched 4291 | -7/Factory | Upgraded with Utility slot (x1) 4319 | -7/Factory | Upgraded with Weapon slot (x1) 4397 | -7/Factory | Destroyed 7 combat bots 4401 | -7/Factory | Reached level 15 4478 | -7/Factory | Upgraded with Propulsion slot (x1) 4768 | -7/Factory | Fabricated Imp. Kinecellerator? 4849 | -7/Factory | Upgraded with Power slot (x1) 4893 | -7/Factory | Reached level 16 5074 | -7/Factory | Entered Lower Caves 5076 | -7/Lower Caves | Attracted the attention of an 0b10 checkpoint 5309 | -7/Lower Caves | A Derelict revealed a hidden shortcut to meet someone special 5389 | -7/Lower Caves | Learned location of 1 exit from Factory 5389 | -7/Lower Caves | Learned 8 Research zone layouts 5389 | -7/Lower Caves | Learned Armory trap positions 5389 | -7/Lower Caves | Learned Factory stockpile data 5400 | -7/Lower Caves | Learned 4 Factory zone layouts 5532 | -7/Lower Caves | Encountered a Warlord checkpoint 5611 | -7/Lower Caves | Discovered new exit (range 2) 5612 | -7/Lower Caves | Entered another Lower Caves area 5614 | -7/Lower Caves | Reached level 17 5622 | -7/Lower Caves | Learned Factory garrison access intel 5657 | -7/Lower Caves | Attracted the attention of an 0b10 base 5701 | -7/Lower Caves | Destroyed 7 combat bots 5724 | -7/Lower Caves | Discovered new exit (range 9) 5735 | -7/Lower Caves | Encountered a Warlord checkpoint 5948 | -7/Lower Caves | Discovered new exit (range 11) 6018 | -7/Lower Caves | Attacked by a faux Warlord 6247 | -7/Lower Caves | Entered Data Miner 6247 | -7/Data Miner | Discovered new exit (range 6) 6255 | -7/Data Miner | Met Data Miner 6266 | -7/Data Miner | Learned location of Section 7 (-2) 6266 | -7/Data Miner | Acquired the access code to Warlord's prototype stash 6272 | -7/Data Miner | Received God Mode back door access code from Data Miner 6282 | -7/Data Miner | Entered Proximity Caves 6284 | -6/Proximity Caves | Attracted the attention of an 0b10 checkpoint 6326 | -6/Proximity Caves | Escorted by Enhanced Grunt 6328 | -6/Proximity Caves | Reached level 18 6465 | -6/Proximity Caves | Attracted the attention of an 0b10 outpost 6611 | -6/Proximity Caves | Learned Factory emergency access door positions 6742 | -6/Proximity Caves | Learned Factory emergency access door positions 6746 | -6/Proximity Caves | Discovered new exit (range 6) 6763 | -6/Proximity Caves | Reached level 19 6766 | -6/Proximity Caves | Build established: Scavenger-Gunner 6791 | -6/Proximity Caves | Entered Factory 6791 | -6/Factory | Accompanied by 2 allies 6792 | -6/Factory | Identified exit to Factory 6796 | -6/Factory | Loaded intel: 4 garrison access locations 6815 | -6/Factory | Spotted B-75 Beast 6829 | -6/Factory | Destroyed B-75 Beast 6854 | -6/Factory | Upgraded with Propulsion slot (x1) 6857 | -6/Factory | Incoming investigation squad redirected 6872 | -6/Factory | Identified exit to Lower Caves 6897 | -6/Factory | Fabricated Aerolev Unit? 6928 | -6/Factory | Fabricated Enh. Gauss Cannon (x2) 7091 | -6/Factory | Fabricated Lgt. Regenerative Plating? 7098 | -6/Factory | Local fabrication network quarantined 7132 | -6/Factory | Reached level 20 7141 | -6/Factory | First assault squad dispatched 7730 | -6/Factory | Upgraded with Utility slot (x1) 7784 | -6/Factory | Upgraded with Utility slot (x1) 7864 | -6/Factory | Incoming assault squad redirected 7877 | -6/Factory | Incoming investigation squad redirected 7948 | -6/Factory | Build established: Machinist-Gunner 7976 | -6/Factory | Reached level 21 8001 | -6/Factory | Incoming investigation squad redirected 8209 | -6/Factory | Incoming assault squad redirected 8212 | -6/Factory | Incoming assault squad redirected 8224 | -6/Factory | High security lockdown imminent 8245 | -6/Factory | Entered Lower Caves 8275 | -6/Lower Caves | Encountered a Warlord checkpoint 8468 | -6/Lower Caves | Identified exit to Lower Caves 8506 | -6/Lower Caves | Learned location of 1 exit from Factory 8535 | -6/Lower Caves | Attracted the attention of an 0b10 outpost 8661 | -6/Lower Caves | Entered another Lower Caves area 8661 | -6/Lower Caves | Accompanied by 1 ally 8714 | -6/Lower Caves | Discovered exit to Factory (range 12) 8715 | -6/Lower Caves | Attracted the attention of an 0b10 checkpoint 8715 | -6/Lower Caves | Learned location of 1 exit from Factory 8791 | -6/Lower Caves | Attracted the attention of an 0b10 outpost 8863 | -6/Lower Caves | Destroyed 11 combat bots 8873 | -6/Lower Caves | Learned Factory terminal intel 8965 | -6/Lower Caves | Spotted B-75 Beast 8993 | -6/Lower Caves | Destroyed B-75 Beast 9070 | -6/Lower Caves | Discovered new exit (range 12) 9197 | -6/Lower Caves | Entered Zion 9228 | -6/Zion | Discovered new exit (range 13) 9236 | -6/Zion | Learned location of 1 exit from Lower Caves 9249 | -6/Zion | System corruption cleaned by Quarantine Array 9283 | -6/Zion | Found Prototype Device 9283 | -6/Zion | Identified Mobile Refinery Mk. CCLXVII 9313 | -6/Zion | Gained Derelict followers 9334 | -6/Zion | Gained Derelict followers 9373 | -6/Zion | Learned location of Warlord (-4) 9478 | -6/Zion | Build established: Machinist-Mutant 9791 | -6/Zion | Found Prototype Device 9791 | -6/Zion | Identified Phasing AFG 9855 | -6/Zion | Entered Proximity Caves 9855 | -5/Proximity Caves | Accompanied by 9 allies 9857 | -5/Proximity Caves | Reached level 22 9922 | -5/Proximity Caves | Learned location of 1 exit from Factory 9935 | -5/Proximity Caves | Destroyed 8 combat bots 9957 | -5/Proximity Caves | Learned Factory garrison access intel 10058 | -5/Proximity Caves | Attracted the attention of an 0b10 checkpoint 10092 | -5/Proximity Caves | Spotted B-75 Beast 10161 | -5/Proximity Caves | Build established: Machinist-Gunner 10195 | -5/Proximity Caves | Reached level 23 10285 | -5/Proximity Caves | Allies destroyed B-75 Beast 10286 | -5/Proximity Caves | Discovered exit to Factory (range 17) 10371 | -5/Proximity Caves | Entered Factory 10371 | -5/Factory | Accompanied by 6 allies 10372 | -5/Factory | Identified exit to Upper Caves 10372 | -5/Factory | Identified exit to Factory 10374 | -5/Factory | Loaded intel: 20 terminal locations 10375 | -5/Factory | Loaded intel: 4 garrison access locations 10607 | -5/Factory | Upgraded with Utility slot (x1) 10717 | -5/Factory | Reached level 24 10840 | -5/Factory | Fabricated Cmb. Gravmag System? 10971 | -5/Factory | First assault squad dispatched 10986 | -5/Factory | Incoming assault squad redirected 11126 | -5/Factory | Sucked down chute 11126 | -5/Factory | Entered Waste 11130 | -5/Waste | Spotted C-40 Crusher 11137 | -5/Waste | Destroyed C-40 Crusher 11145 | -5/Waste | Warlord forces began an assault 11151 | -5/Waste | Found Prototype Device 11151 | -5/Waste | Identified EM Dispersion Field 11166 | -5/Waste | Spotted C-40 Crusher 11166 | -5/Waste | Spotted C-40 Crusher 11171 | -5/Waste | Destroyed C-40 Crusher 11176 | -5/Waste | Allies destroyed C-40 Crusher 11181 | -5/Waste | Spotted C-40 Crusher 11186 | -5/Waste | Allies destroyed C-40 Crusher 11190 | -5/Waste | Spotted C-40 Crusher 11201 | -5/Waste | Allies destroyed C-40 Crusher 11206 | -5/Waste | Spotted C-40 Crusher 11207 | -5/Waste | Destroyed C-40 Crusher 11242 | -5/Waste | Discovered new exit (range 10) 11319 | -5/Waste | Entered Factory 11319 | -5/Factory | Accompanied by 15 allies 11378 | -5/Factory | Discovered exit to Upper Caves (range 9) 11671 | -5/Factory | Discovered exit to Factory (range 15) 11693 | -5/Factory | Reached level 25 11786 | -5/Factory | Discovered exit to Upper Caves (range 18) 11800 | -5/Factory | Garrison activated, responded to threat 11849 | -5/Factory | Incoming investigation squad redirected 11866 | -5/Factory | Discovered exit to Factory (range 17) 11903 | -5/Factory | Destroyed 12 combat bots 11919 | -5/Factory | First assault squad dispatched 11945 | -5/Factory | Incoming assault squad redirected 11945 | -5/Factory | High security lockdown imminent 11979 | -5/Factory | Fabricated Adv. Core Analyzer? 11999 | -5/Factory | Destroyed 10 combat bots 12013 | -5/Factory | Allied Derelicts emerged from ambush trap array 12018 | -5/Factory | Entered Upper Caves 12018 | -5/Upper Caves | Accompanied by 3 allies 12151 | -5/Upper Caves | Encountered a Warlord checkpoint 12182 | -5/Upper Caves | Spotted B-75 Beast 12195 | -5/Upper Caves | Destroyed B-75 Beast 12206 | -5/Upper Caves | Discovered new exit (range 17) 12304 | -5/Upper Caves | Entered another Upper Caves area 12304 | -5/Upper Caves | Accompanied by 3 allies 12316 | -5/Upper Caves | Discovered exit to Factory (range 6) 12510 | -5/Upper Caves | Encountered a Warlord checkpoint 12585 | -5/Upper Caves | Attracted the attention of an 0b10 base 12641 | -5/Upper Caves | Learned Research terminal intel 12641 | -5/Upper Caves | Learned 6 Proximity Caves zone layouts 12822 | -5/Upper Caves | Discovered new exit (range 12) 12878 | -5/Upper Caves | Entered Zhirov 12878 | -5/Zhirov | Accompanied by 1 ally 12878 | -5/Zhirov | Discovered new exit (range 3) 12887 | -5/Zhirov | Met Zhirov 12897 | -5/Zhirov | Learned location of Quarantine (-2) 12900 | -5/Zhirov | Zhirov requested help retrieving the SGEMP Prototype 12907 | -5/Zhirov | Found Alien Artifact 12907 | -5/Zhirov | Identified Integrated Reactor 12907 | -5/Zhirov | Installed Integrated Reactor, increased core energy generation (+10) 12925 | -5/Zhirov | Upgraded with Propulsion slot (x1) 12979 | -5/Zhirov | Entered Proximity Caves 12979 | -4/Proximity Caves | Accompanied by 1 ally 12981 | -4/Proximity Caves | Reached level 26 13075 | -4/Proximity Caves | Learned location of 1 exit from Upper Caves 13255 | -4/Proximity Caves | Spotted B-86 Titan 13259 | -4/Proximity Caves | Attracted the attention of an 0b10 checkpoint 13326 | -4/Proximity Caves | Destroyed B-86 Titan 13392 | -4/Proximity Caves | Learned Research garrison access intel 13447 | -4/Proximity Caves | Learned Research security intel 13451 | -4/Proximity Caves | Discovered exit to Factory (range 4) 13452 | -4/Proximity Caves | Entered Factory 13453 | -4/Factory | Identified exit to Research 13471 | -4/Factory | Spotted B-86 Titan 13692 | -4/Factory | Discovered new exit (range 34) 13725 | -4/Factory | Incoming investigation squad redirected 13788 | -4/Factory | Discovered exit to Research (range 4) 13826 | -4/Factory | Reached level 27 13857 | -4/Factory | Discovered new exit (range 13) 13863 | -4/Factory | Discovered exit to Research (range 9) 14123 | -4/Factory | Fabricated R-10 Processor? 14143 | -4/Factory | Fabricated G-67 Veteran? 14165 | -4/Factory | Garrison activated, responded to threat 14226 | -4/Factory | Destroyed 9 combat bots 14277 | -4/Factory | Discovered new exit (range 11) 14308 | -4/Factory | Discovered new exit (range 9) 14324 | -4/Factory | Identified exit to Upper Caves 14324 | -4/Factory | Identified exit to Extension 14324 | -4/Factory | Identified exit to Armory 14375 | -4/Factory | Discovered exit to Research (range 5) 14403 | -4/Factory | Spotted B-86 Titan 14448 | -4/Factory | Local fabrication network quarantined 14511 | -4/Factory | Crushed by falling debris 14577 | -4/Factory | Destroyed B-86 Titan 14702 | -4/Factory | First assault squad dispatched 14732 | -4/Factory | Incoming investigation squad redirected 14743 | -4/Factory | Entered Upper Caves 14744 | -4/Upper Caves | Identified exit to Upper Caves 14853 | -4/Upper Caves | Upgraded with Utility slot (x1) 14913 | -4/Upper Caves | Destroyed 12 combat bots 15068 | -4/Upper Caves | Entered another Upper Caves area 15088 | -4/Upper Caves | Discovered exit to Research (range 9) 15144 | -4/Upper Caves | Reached level 28 15342 | -4/Upper Caves | Discovered new exit (range 14) 15353 | -4/Upper Caves | Learned 4 Research zone layouts 15384 | -4/Upper Caves | Entered Warlord 15384 | -4/Warlord | Accompanied by 1 ally 15398 | -4/Warlord | System corruption cleaned by Quarantine Array 15602 | -4/Warlord | Visited the Vortex Lab 15603 | -4/Warlord | Upgraded with Utility slot (x1) 15605 | -4/Warlord | Found Prototype Launcher 15609 | -4/Warlord | Identified Vortex Catalyst Activator 15623 | -4/Warlord | Warlord's base attacked by MAIN.C 15646 | -4/Warlord | Met Warlord 15650 | -4/Warlord | Opened Warlord's prototype stash 15652 | -4/Warlord | Found Prototype Reactor 15652 | -4/Warlord | Identified Vortex Chain Reactor 15665 | -4/Warlord | Found Prototype Device 15665 | -4/Warlord | Identified Thermal Barrier 15671 | -4/Warlord | Found Prototype Device 15671 | -4/Warlord | Identified Exp. Phase Shifter 15715 | -4/Warlord | Build established: Machinist-Mutant 15796 | -4/Warlord | Destroyed 7 combat bots 15818 | -4/Warlord | Spotted B-90 Cyclops 15930 | -4/Warlord | Warlord forces counterattacked 15937 | -4/Warlord | Destroyed 9 combat bots 15941 | -4/Warlord | Spotted B-90 Cyclops 15944 | -4/Warlord | Spotted Executioner 15945 | -4/Warlord | Spotted B-86 Titan 15955 | -4/Warlord | Destroyed Executioner 15979 | -4/Warlord | Spotted Striker 15997 | -4/Warlord | Discovered new exit (range 17) 16024 | -4/Warlord | Spotted Executioner 16024 | -4/Warlord | Spotted Executioner 16024 | -4/Warlord | Spotted Executioner 16025 | -4/Warlord | Destroyed Executioner 16025 | -4/Warlord | Destroyed Executioner 16046 | -4/Warlord | Destroyed 12 combat bots 16123 | -4/Warlord | Spotted Executioner 16123 | -4/Warlord | Spotted Executioner 16123 | -4/Warlord | Destroyed Executioner 16148 | -4/Warlord | Destroyed 14 combat bots 16223 | -4/Warlord | Spotted Striker 16229 | -4/Warlord | Destroyed Striker 16253 | -4/Warlord | Destroyed 12 combat bots 16299 | -4/Warlord | Build established: Machinist-Gunner 16323 | -4/Warlord | Spotted B-86 Titan 16323 | -4/Warlord | Spotted Executioner 16323 | -4/Warlord | Spotted Striker 16323 | -4/Warlord | Spotted Executioner 16323 | -4/Warlord | Spotted B-90 Cyclops 16323 | -4/Warlord | Destroyed Executioner 16325 | -4/Warlord | Destroyed Executioner 16325 | -4/Warlord | Destroyed B-86 Titan 16330 | -4/Warlord | Destroyed Striker 16333 | -4/Warlord | Destroyed B-90 Cyclops 16354 | -4/Warlord | Destroyed 15 combat bots 16423 | -4/Warlord | Reached level 29 16447 | -4/Warlord | Destroyed 15 combat bots 16523 | -4/Warlord | Spotted Striker 16523 | -4/Warlord | Spotted Executioner 16523 | -4/Warlord | Spotted B-90 Cyclops 16524 | -4/Warlord | Destroyed B-86 Titan 16545 | -4/Warlord | Destroyed 11 combat bots 16623 | -4/Warlord | Spotted Striker 16623 | -4/Warlord | Spotted Executioner 16623 | -4/Warlord | Spotted B-90 Cyclops 16623 | -4/Warlord | Spotted Executioner 16623 | -4/Warlord | Destroyed Executioner 16624 | -4/Warlord | Destroyed Striker 16631 | -4/Warlord | Destroyed Executioner 16639 | -4/Warlord | Destroyed B-90 Cyclops 16660 | -4/Warlord | Destroyed 15 combat bots 16723 | -4/Warlord | Destroyed Striker 16723 | -4/Warlord | Destroyed Executioner 16747 | -4/Warlord | Destroyed 17 combat bots 16823 | -4/Warlord | Spotted Executioner 16823 | -4/Warlord | Destroyed Striker 16823 | -4/Warlord | Spotted B-90 Cyclops 16823 | -4/Warlord | Spotted Striker 16823 | -4/Warlord | Spotted B-90 Cyclops 16823 | -4/Warlord | Spotted B-86 Titan 16825 | -4/Warlord | Destroyed Executioner 16831 | -4/Warlord | Destroyed B-86 Titan 16833 | -4/Warlord | Destroyed B-90 Cyclops 16833 | -4/Warlord | Destroyed Striker 16854 | -4/Warlord | Destroyed 13 combat bots 16924 | -4/Warlord | Spotted Striker 16924 | -4/Warlord | Spotted B-86 Titan 16924 | -4/Warlord | Spotted B-90 Cyclops 16926 | -4/Warlord | Destroyed Striker 16941 | -4/Warlord | Destroyed B-90 Cyclops 16949 | -4/Warlord | Destroyed B-86 Titan 16970 | -4/Warlord | Destroyed 13 combat bots 17025 | -4/Warlord | Spotted Striker 17025 | -4/Warlord | Destroyed Striker 17048 | -4/Warlord | Destroyed 17 combat bots 17125 | -4/Warlord | Destroyed Striker 17125 | -4/Warlord | Destroyed Striker 17158 | -4/Warlord | Destroyed 18 combat bots 17223 | -4/Warlord | Destroyed Executioner 17224 | -4/Warlord | Spotted Executioner 17224 | -4/Warlord | Spotted Striker 17225 | -4/Warlord | Reached level 30 17226 | -4/Warlord | Destroyed Striker 17242 | -4/Warlord | Destroyed Executioner 17263 | -4/Warlord | Destroyed 20 combat bots 17452 | -4/Warlord | Opened side exit 17491 | -4/Warlord | Spotted Striker 17492 | -4/Warlord | Crushed by falling debris 17493 | -4/Warlord | Entered Proximity Caves 17602 | -3/Proximity Caves | Destroyed 8 combat bots 17612 | -3/Proximity Caves | Spotted B-86 Titan 17618 | -3/Proximity Caves | Destroyed B-86 Titan 17683 | -3/Proximity Caves | Attracted the attention of an 0b10 checkpoint 18051 | -3/Proximity Caves | Discovered exit to Research (range 6) 18112 | -3/Proximity Caves | Entered Research 18112 | -3/Research | Accompanied by 1 ally 18113 | -3/Research | Identified exit to Research 18115 | -3/Research | Loaded intel: 18 terminal locations 18116 | -3/Research | Loaded intel: 4 garrison access locations 18178 | -3/Research | Incoming investigation squad redirected 18423 | -3/Research | Identified exit to Testing 18468 | -3/Research | Entered Testing 18474 | -3/Testing | Build established: Machinist-Mutant 18494 | -3/Testing | Incoming investigation squad redirected 18545 | -3/Testing | Reached level 31 18572 | -3/Testing | Destroyed 7 combat bots 18656 | -3/Testing | Destroyed 12 combat bots 18688 | -3/Testing | Found Prototype Processor 18688 | -3/Testing | Identified Spectral Analyzer 18704 | -3/Testing | Found Prototype Launcher 18704 | -3/Testing | Identified Com. Tesla Bomb Launcher 18725 | -3/Testing | Found Prototype Device 18725 | -3/Testing | Identified Exp. Shield Generator 18840 | -3/Testing | Discovered exit to Research (range 9) 18958 | -3/Testing | Scanned by Researcher 18968 | -3/Testing | First assault squad dispatched 18972 | -3/Testing | Garrison activated, responded to threat 18998 | -3/Testing | Incoming assault squad redirected 19095 | -3/Testing | Entered Research 19095 | -2/Research | Warlord forces began assault on 0b10 19136 | -2/Research | Reached level 32 19150 | -2/Research | Upgraded with Utility slot (x1) 19157 | -2/Research | Destroyed 7 combat bots 19187 | -2/Research | Discovered new exit (range 11) 19200 | -2/Research | Spotted B-90 Cyclops 19205 | -2/Research | Research machine network offline 19382 | -2/Research | Met up with Warlord 19403 | -2/Research | Found Prototype Processor 19403 | -2/Research | Identified Exp. Melee Analysis Suite 19463 | -2/Research | Found Prototype Processor 19463 | -2/Research | Identified Exp. Targeting Computer 19514 | -2/Research | Spotted Striker 19523 | -2/Research | Spotted Striker 19527 | -2/Research | Destroyed Striker 19527 | -2/Research | Destroyed Striker 19614 | -2/Research | Spotted Executioner 19616 | -2/Research | Spotted Striker 19616 | -2/Research | Destroyed Striker 19625 | -2/Research | Destroyed Executioner 19633 | -2/Research | Found Prototype Device 19633 | -2/Research | Identified Adv. Kinecellerator 19638 | -2/Research | Found Prototype Processor 19638 | -2/Research | Identified Exp. Core Analyzer 19669 | -2/Research | Destroyed 13 combat bots 19698 | -2/Research | Discovered new exit (range 17) 19902 | -2/Research | Borebot progress halted 19993 | -2/Research | Spotted Executioner 19995 | -2/Research | Spotted Striker 20002 | -2/Research | Destroyed Striker 20002 | -2/Research | Destroyed Executioner 20070 | -2/Research | Build established: Gunner 20116 | -2/Research | Warlord invited to help at Command 20116 | -2/Research | Reached level 33 20126 | -2/Research | Spotted Executioner 20131 | -2/Research | Spotted Executioner 20138 | -2/Research | Destroyed Executioner 20175 | -2/Research | Spotted Striker 20282 | -2/Research | Spotted Executioner 20283 | -2/Research | High security lockdown imminent 20286 | -2/Research | Spotted Striker 20304 | -2/Research | Spotted Executioner 20304 | -2/Research | Spotted Executioner 20317 | -2/Research | Entered Access 20370 | -1/Access | Garrison activated, responded to threat 20374 | -1/Access | Spotted B-99 Colossus 20378 | -1/Access | Spotted B-99 Colossus 20454 | -1/Access | Build established: Sprinter 20506 | -1/Access | Reached level 34 20602 | -1/Access | First assault squad dispatched 20618 | -1/Access | Incoming assault squad redirected 20630 | -1/Access | Destroyed 12 combat bots 20649 | -1/Access | Identified exit to Command 20789 | -1/Access | Entered Command 20791 | -1/Command | Reached level 35 21013 | -1/Command | Spotted B-99 Colossus 21083 | -1/Command | First assault squad dispatched 21106 | -1/Command | Reached level 36 21114 | -1/Command | Incoming investigation squad redirected 21133 | -1/Command | Destroyed 7 combat bots 21188 | -1/Command | Spotted Alpha 7 21188 | -1/Command | Spotted Alpha 7 21188 | -1/Command | Spotted Striker 21188 | -1/Command | Spotted Striker 21188 | -1/Command | Spotted Executioner 21188 | -1/Command | Spotted Executioner 21188 | -1/Command | Spotted Executioner 21188 | -1/Command | Spotted Executioner 21199 | -1/Command | Destroyed Striker 21211 | -1/Command | Destroyed Executioner 21214 | -1/Command | Spotted B-99 Colossus 21222 | -1/Command | Core integrity fell below 50% 21224 | -1/Command | Destroyed Striker 21262 | -1/Command | Destroyed Executioner 21283 | -1/Command | Destroyed 10 combat bots 21300 | -1/Command | Build established: Hacker-Sprinter 21307 | -1/Command | Destroyed B-99 Colossus 21310 | -1/Command | Incoming assault squad redirected 21400 | -1/Command | Spotted B-99 Colossus 21414 | -1/Command | Destroyed Executioner 21417 | -1/Command | Destroyed Executioner 21485 | -1/Command | Destroyed B-99 Colossus 21511 | -1/Command | Found Prototype Ballistic Gun 21511 | -1/Command | Identified Multirail 21515 | -1/Command | Found Multirail 21597 | -1/Command | Incoming assault squad redirected 21712 | -1/Command | Incoming assault squad redirected 21713 | -1/Command | High security lockdown imminent 21745 | -1/Command | Destroyed 10 combat bots 21793 | -1/Command | High security lockdown engaged 21949 | -1/Command | Destroyed 18 combat bots 22001 | -1/Command | Spotted Investigator 22003 | -1/Command | Spotted Executioner 22003 | -1/Command | Spotted Executioner 22003 | -1/Command | Spotted Executioner 22007 | -1/Command | Destroyed Investigator 22013 | -1/Command | Destroyed Executioner 22015 | -1/Command | Destroyed Executioner 22021 | -1/Command | Reached level 37 22024 | -1/Command | Destroyed Executioner 22051 | -1/Command | Destroyed 15 combat bots 22097 | -1/Command | Build established: Scavenger-Sprinter 22122 | -1/Command | Upgraded with Utility slot (x1) 22124 | -1/Command | Spotted Executioner 22129 | -1/Command | Spotted Investigator 22129 | -1/Command | Destroyed Executioner 22129 | -1/Command | Destroyed Investigator 22151 | -1/Command | Spotted Striker 22151 | -1/Command | Destroyed Striker 22186 | -1/Command | Destroyed 25 combat bots 22350 | -1/Command | Spotted Investigator 22358 | -1/Command | Destroyed Investigator 22382 | -1/Command | Destroyed 12 combat bots 22384 | -1/Command | Spotted Executioner 22385 | -1/Command | Spotted Executioner 22390 | -1/Command | Destroyed Executioner 22390 | -1/Command | Destroyed Executioner 22396 | -1/Command | Destroyed Striker 22401 | -1/Command | Spotted Executioner 22402 | -1/Command | Destroyed Striker 22402 | -1/Command | Destroyed Executioner 22425 | -1/Command | Destroyed 17 combat bots 22604 | -1/Command | Destroyed Striker 22610 | -1/Command | Destroyed Striker 22610 | -1/Command | Spotted Executioner 22612 | -1/Command | Destroyed Executioner 22618 | -1/Command | Spotted Executioner 22618 | -1/Command | Destroyed Executioner 22619 | -1/Command | Spotted Striker 22629 | -1/Command | Destroyed Striker 22636 | -1/Command | Spotted Striker 22638 | -1/Command | Destroyed Striker 22641 | -1/Command | Spotted Executioner 22646 | -1/Command | Destroyed Striker 22652 | -1/Command | Destroyed Executioner 22653 | -1/Command | Spotted Executioner 22653 | -1/Command | Spotted Striker 22663 | -1/Command | Destroyed Striker 22663 | -1/Command | Destroyed Executioner 22694 | -1/Command | Destroyed 33 combat bots 23425 | -1/Command | Destroyed B-99 Colossus 23434 | -1/Command | Reached level 38 23440 | -1/Command | Found Multirail 23645 | -1/Command | Spotted B-99 Colossus 23655 | -1/Command | Destroyed B-99 Colossus 23677 | -1/Command | Found Multirail 23693 | -1/Command | Phase Generator disabled 24371 | -1/Command | Destroyed Alpha 7 24382 | -1/Command | Found Prototype Processor 24382 | -1/Command | Identified Exp. Target Analyzer 24444 | -1/Command | Spotted M Guard 24444 | -1/Command | Spotted M Guard 24444 | -1/Command | Spotted Combat Programmer 24467 | -1/Command | Spotted Combat Programmer 24474 | -1/Command | Destroyed Combat Programmer 24477 | -1/Command | Destroyed Combat Programmer 24499 | -1/Command | Destroyed M Guard 24511 | -1/Command | Destroyed M Guard 24511 | -1/Command | All MAIN.C guards destroyed 24526 | -1/Command | Found Prototype Reactor 24526 | -1/Command | Identified Zero-point Reactor 24528 | -1/Command | Found Zero-point Reactor 24546 | -1/Command | Found Prototype Device 24546 | -1/Command | Identified AEGIS Remote Shield 24549 | -1/Command | Found Zero-point Reactor 24559 | -1/Command | Found Prototype Launcher 24559 | -1/Command | Identified Ragnarok Missile Launcher 24700 | -1/Command | Destroyed 40 combat bots 24787 | -1/Command | Destroyed 28 combat bots 24905 | -1/Command | Destroyed 58 combat bots 24948 | -1/Command | Destroyed 8 combat bots 25011 | -1/Command | Destroyed 10 combat bots 25031 | -1/Command | Reached level 39 25085 | -1/Command | Destroyed 14 combat bots 25610 | -1/Command | Crushed by falling debris 26086 | -1/Command | Met MAIN.C 26247 | -1/Command | Destroyed 40 combat bots 26436 | -1/Command | Destroyed 71 combat bots 26534 | -1/Command | Found Prototype Energy Cannon 26534 | -1/Command | Identified Cld. Nova Cannon 26601 | -1/Command | Found Zero-point Reactor 26698 | -1/Command | Build established: Scavenger-Gunner 27425 | -1/Command | Found Prototype Protection 27425 | -1/Command | Identified Hvy. Regenerative Plating 27617 | -1/Command | Destroyed Alpha 7 27622 | -1/Command | Found Prototype Device 27622 | -1/Command | Identified Exp. ECM Suite 27750 | -1/Command | Destroyed 29 combat bots 27811 | -1/Command | Destroyed 8 combat bots 27838 | -1/Command | MAIN.C activated Command garrisons 27863 | -1/Command | Destroyed MAIN.C Shell 27969 | -1/Command | Destroyed MAIN.C 27986 | -1/Command | Found Prototype Device 27986 | -1/Command | Identified Beam Splitter 27988 | -1/Command | Found Prototype Protection 27988 | -1/Command | Identified Exp. Powered Armor 28100 | -1/Command | Found Prototype Protection 28100 | -1/Command | Identified Centrium Heavy Armor Plating 28112 | -1/Command | 0b10 Conduit disabled 28172 | -1/Command | Discovered new exit (range 9) 28267 | -1/Command | Build established: Scavenger-Sprinter 28508 | -1/Command | Found Prototype Device 28508 | -1/Command | Identified Exp. Weapon Cycler 28512 | -1/Command | Found Multirail 28683 | *** | Establishing 0b11! Last Messages --------------- 28532_ Acquired 9 matter. 28533_ Acquired 17 matter. 28554_ I-47 Archangel triggered Shock Trap. 28554_ The floor emits a surge of raw power. 28638_ K-01 Serf collects debris. 28659_ Slug penetrates I-47 Archangel. 28659_ Slug penetrates K-01 Serf. 28659_ K-01 Serf destroyed. 28660_ Acquired 5 matter. 28661_ Slug penetrates I-47 Archangel. 28661_ I-47 Archangel suffers critical hit. 28661_ Destroyed Unknown Wheel. 28662_ Acquired 6 matter. 28662_ Slug penetrates I-47 Archangel. 28662_ I-47 Archangel suffers critical hit. 28662_ Destroyed Antimatter Reactor. 28662_ Slug penetrates I-47 Archangel. 28663_ Acquired 6 matter. 28664_ Slug penetrates I-47 Archangel. 28665_ Acquired 6 matter. Map ----- +----------------------------------------------------+ | !!* # # ! [ ! | | =!%= # # *[=[ " | | *%= ! # # " | | #################! # ###+########### """ | | ??# =!! # # ## #????# " "" | | # =!! # # ## ! #????# "" | | " # =!! + # ## #????######## | | "" !# # + ## #???????????? | | "" # # =%# ## #???????????? | | " # ?# *######## #???????????? | | # | ?# #???? # #???????????? | | ############# #??? # #???????????? | | ########### # #??? # #???????????? | | # + +?? # = #???????????? | | # # #?? # #???????????? | | # # #? ! #########???????????? | | # # # #???????????????????? | | " # # #???????????????????? | | """" # # " #???????????????????? | | """" # # + #???????????????????? | | """" #! # =%# #???????????????????? | | """" # " !########???????????????????? | | # "%/ #??????????????????????????? | | # +! #######????????????????????? | | ####### ## #????????????????????? | | ################# ## @ #????????????????????? | | # ^ ^ ## #????????????????????? | | # ####### #### #????????????????????? | | # # ] ! # ^ ^ #### #????????????????????? | | # + #????????????????????? | | # # #????????????????????? | | # ###### #????????????????????? | | # =![ #????# #????????????????????? | | # # =![ #????# #????????????????????? | | # # =[[ #????# #########+#######???????????????? | | # #######????#####?# ] #???????????????? | | #+#####????????????# #???????????????? | | #????????????# = #???????????????? | | #????????????# #???????????????? | | #????????????# [ #???????????????? | | #????????????# #???????????????? | | #######????????????###############???????????????? | | ?????????????????????????????????????????????????? | | ?????????????????????????????????????????????????? | | ?????????????????????????????????????????????????? | | ?????????????????????????????????????????????????? | | ?????????????????????????????????????????????????? | | ?????????????????????????????????????????????????? | | ?????????????????????????????????????????????????? | | ?????????????????????????????????????????????????? | +----------------------------------------------------+ Best States ------------- Heat Dissipation 109 Energy Generation 98 Energy Capacity 1380 Matter Stores 900 Matter Capacity 900 Sight Range 18 Terrain Scan Density 10 Power Amplification 40 EM Shielding 4 Armor Coverage 1000 Resistance: KI 20 Resistance: TH 50 Resistance: EX 5 Resistance: EM 75 Weapon Cycling 30 Evasion (%) 75 Targeting Accuracy 12 Melee Accuracy 38 Target Analysis 12 Core Analysis 15 Armor Integrity Analysis 66 Recoil Reduction 6 Kinecelleration 50 Force Boost 3 Salvage Targeting 4 Offensive Hacking 24 Defensive Hacking 5 Item Schematics ----------------- Aerolev Unit | -7/Factory | Scanalyzed Combat Drone Bay | -7/Data Miner | Free Lgt. Regenerative Plating | -7/Data Miner | Free Exp. Flexi-carbon Leg | -7/Data Miner | Free Exp. Cesium-ion Thruster | -7/Data Miner | Free Exp. Transmission Jammer | -7/Data Miner | Free Enh. Gauss Cannon | -6/Factory | Hacked EM Shield | -6/Factory | Hacked Plasma Flamer | -6/Zion | Free Enh. Flamer | -6/Zion | Free Adv. Core Analyzer | -5/Factory | Hacked Adv. Focal Shield | -5/Factory | Hacked Assault Drone Bay | -5/Zhirov | Free Exp. Heat Sink | -5/Zhirov | Free Exp. Optical Array | -5/Zhirov | Free Imp. Arc Thrower | -5/Zhirov | Free Hvy. Siege Treads | -4/Factory | Hacked Robot Schematics ------------------ S-27 Virus | -7/Data Miner | Free G-67 Veteran | -7/Data Miner | Free L-41 Fighter | -7/Data Miner | Free X-72 Disruptor | -7/Data Miner | Free H-66 Slayer | -7/Data Miner | Free I-47 Archangel | -7/Data Miner | Free Fabricated ------------ Aerolev Unit | x1 | -7/Factory Imp. Kinecellerator | x1 | -7/Factory | Preloaded Aerolev Unit | x1 | -6/Factory Enh. Gauss Cannon | x2 | -6/Factory Lgt. Regenerative Plating | x1 | -6/Factory Cmb. Gravmag System | x2 | -5/Factory | Preloaded Adv. Core Analyzer | x1 | -5/Factory R-10 Processor | x1 | -4/Factory | Preloaded G-67 Veteran | x3 | -4/Factory | Preloaded Alien Tech Used ----------------- Integrated Reactor Achievements -------------- None Challenges ------------ None RPGLIKE | -11 -10 -10 -9 -9 -9 -8 -8 -8 -7 -7 -7 -7 -6 -6 -6 -6 -6 -5 -5 -5 -5 -5 -5 -5 -4 -4 -4 -4 -4 -3 -3 -3 -2 -1 -1 --------- Run | Scr Mat Min Mat Min Exi Min Mat Sto Fac Low Low Dat Pro Fac Low Low Zio Pro Fac Was Fac Upp Upp Zhi Pro Fac Upp Upp War Pro Res Tes Res Acc Com Levels Raised 38 | . . 1 4 . 1 . 2 3 4 . 1 . 2 2 . . . 2 1 . 1 . . . 1 1 . 1 2 . . 1 2 1 5 XP Earned 61325 | 3000 615 1575 5367 1255 200 750 2490 5279 5447 859 429 152 2684 3169 278 693 105 1955 1599 35 1822 138 353 73 864 1861 292 172 3042 683 399 886 2725 2351 7728 XP Spent 56245 | 2925 . . 1335 350 . 500 3160 4690 11245 300 . . 400 6730 . . . . 2600 1250 140 . . 1700 . . 2900 . 5280 . 400 . 3500 . 6840 Upgrades 89 | 11 . . 3 2 . 1 5 11 18 1 . . 2 5 . . . . 1 1 2 . . 1 . . 1 . 5 . 1 . 1 . 17 Power Slot 1 | . . . . . . . . . 1 . . . . . . . . . . . . . . . . . . . . . . . . . . Propulsion Slot 5 | 1 . . . . . . . 1 1 . . . . 1 . . . . . . . . . 1 . . . . . . . . . . . Utility Slot 12 | 1 . . . . . . 2 1 1 . . . . 2 . . . . 1 . . . . . . . 1 . 1 . . . 1 . 1 Weapon Slot 4 | 1 . . 1 . . . 1 . 1 . . . . . . . . . . . . . . . . . . . . . . . . . . Core Integrity 20 | 1 . . 1 . . . . 2 . . . . . . . . . . . . 2 . . . . . . . 2 . . . . . 12 Heat Dissipation 14 | 1 . . . . . . 2 2 2 . . . 2 1 . . . . . . . . . . . . . . . . . . . . 4 Energy Generation 1 | 1 . . . . . . . . . . . . . . . . . . . . . . . . . . . . . . . . . . . Matter Storage 2 | . . . . 1 . . . . 1 . . . . . . . . . . . . . . . . . . . . . . . . . . Mass Support 2 | 1 . . . . . . . . 1 . . . . . . . . . . . . . . . . . . . . . . . . . . Inventory Capacity 5 | 1 . . 1 . . . . 1 1 . . . . . . . . . . 1 . . . . . . . . . . . . . . . Sight Range 2 | . . . . . . . . . 1 1 . . . . . . . . . . . . . . . . . . . . . . . . . Ranged Accuracy 5 | 1 . . . . . 1 . . 2 . . . . 1 . . . . . . . . . . . . . . . . . . . . . Hack Attack % 2 | . . . . . . . . . 1 . . . . . . . . . . . . . . . . . . . . . 1 . . . . Hack Defense % 1 | . . . . . . . . . 1 . . . . . . . . . . . . . . . . . . . . . . . . . . KI Resistance % 4 | 1 . . . . . . . 1 2 . . . . . . . . . . . . . . . . . . . . . . . . . . TH Resistance % 4 | 1 . . . . . . . 1 2 . . . . . . . . . . . . . . . . . . . . . . . . . . EX Resistance % 1 | . . . . 1 . . . . . . . . . . . . . . . . . . . . . . . . . . . . . . . KI Damage % 4 | . . . . . . . . 2 . . . . . . . . . . . . . . . . . . . . 2 . . . . . . Protomatter Created 19870 | . 35 . 378 . . . 153 413 573 151 218 . 297 943 188 417 . 280 603 259 665 10 235 . 231 805 90 138 1870 621 . 850 949 482 8016 Integrity Restored 27688 | . 105 . 802 217 . . 468 776 564 447 505 . 751 922 398 777 . 517 519 36 537 189 233 . 659 1400 261 231 2952 601 121 750 924 645 10381 Core 19358 | . 105 . 556 130 . . 265 610 410 447 299 . 497 693 315 593 . 422 330 . 350 154 187 . 534 1089 261 135 1522 435 30 578 614 499 7298 Parts 8330 | . . . 246 87 . . 203 166 154 . 206 . 254 229 83 184 . 95 189 36 187 35 46 . 125 311 . 96 1430 166 91 172 310 146 3083 Protomatter Decayed 15431 | . . . 226 24 . . . 304 293 . 44 . 242 706 48 319 . 136 342 148 1027 10 243 . 73 584 3 . 760 457 . 484 3647 394 4917 Game ------ Seed DimensionalHoverBoregun Manual? 0 Play Time 06:48:18 Cumulative 466.5 hours Start 2021.06.24 @ 10:28:35 End 2021.06.25 @ 01:42:44 Sessions 3 Manual Loads 0 Difficulty Rogue Special Mode Winter2019/RPGLIKE Game No. 170 Rogue 170 Adventurer 0 Explorer 0 Win Type 1 Total 35 Types 24/2/5/2/1/0/0/0/1 Lore% 85 Gallery% 92 Achievement% 80 Wizard Run 0 Options --------- ASCII 0 Keyboard 0 Movement Mouse Keybinds 0 Fullscreen 2 Font 12/Smallcaps Map View 83x54 Tactical HUD 1 Map Filters NONE Filters NONE Steam X RUN: 935475fe-fb9d-4f8e-b363-dc45fa55063b